Workbook

Sheet Summary
B2: 速度 | C2: V | D2: 30 | E2: m/s
D3: =D2*3.6 -> 108 | E3: km/h
D4: =D2*1.94384 -> 58.3152 | E4: kt
B5: 代表面積 | C5: Sref | D5: ='Wing Geometry'!D3 -> 24 | E5: ㎡
B6: 代表長さ(縦) | C6: cMAC | D6: ='Wing Geometry'!D6 -> 2.166666667 | E6: m
B7: 代表長(横･方向) | C7: bref | D7: ='Wing Geometry'!D4 -> 12 | E7: m
B8: レイノルズ数 | C8: Re | D8: =(D2*D6)/D23 -> 4449921.271 | E8: -
B9: マッハ数 | C9: M | D9: =D2/D21 -> 0.08816009874 | E9: -
C10: β | D10: =SQRT(1-D9^2) -> 0.9961063181 | E10: -
C11: W | D11: 600 | E11: kg
C12: W/S | D12: =D11/D5 -> 25 | E12: kg/㎡
C13: CL | D13: =(D11*9.81)/(0.5*D20*D2*D2*D5) -> 0.4448979592 | E13: -
C14: α | D14: 0 | E14: deg | F14: 仮置き
B17: 標準大気
B18: 空気の温度 | C18: T0 | D18: 15 | E18: ℃
B19: 空気の圧力 | C19: P0 | D19: 101325 | E19: Pa
B20: 空気の密度 | C20: ρ0 | D20: 1.225 | E20: kg/㎥
B21: 空気の音速 | C21: a0 | D21: 340.29 | E21: m/s
B22: 空気の粘性係数 | C22: μ0 | D22: =1.7894*10^-5 -> 1.7894e-05 | E22: Ns/㎡
B23: 空気の動粘性係数 | C23: ν0 | D23: =1.4607*10^-5 -> 1.4607e-05 | E23: ㎡/s

Sheet Wing Geometry
D2: Wing | E2: Tail | F2: Fin | G2: unit | H2: comment | J2: x | K2: y | L2: z
B3: 主翼面積 | C3: S | D3: 24 | E3: 6 | F3: 3 | G3: ㎡ | J3: =D20+D24*D14*(1-COS(RADIANS(D23))) -> 2.001826962 | K3: =D21 -> 0 | L3: =D22+D24*D14*SIN(RADIANS(D23)) -> -0.1976826447
B4: スパン | C4: b | D4: 12 | E4: 4 | F4: 2 | G4: m | J4: =D20+(D4/2)*TAN(RADIANS(D10))+D24*D15*(1-COS(RADIANS(D23+D25))) -> 5.464101615 | K4: =(D4/2)*COS(RADIANS(D26)) -> 5.977168189 | L4: =L3+(D4/2)*SIN(RADIANS(D26))+D24*D15*SIN(RADIANS(D23+D25)) -> 0.3252518118
B5: 平均幾何翼弦長 | C5: S/b | D5: 2 | E5: 1.5 | F5: 1.5 | J5: =J4+D15*COS(RADIANS(D23+D25)) -> 6.464101615 | K5: =K4 -> 5.977168189 | L5: =L4-D15*SIN(RADIANS(D23+D25)) -> 0.3252518118
B6: 平均空力翼弦長 | C6: cMAC | D6: =(2/3)*D14*(1+D13+D13^2)/(1+D13) -> 2.166666667 | E6: =(2/3)*E14*(1+E13+E13^2)/(1+E13) -> 1.555555556 | F6: =(2/3)*F14*(1+F13+F13^2)/(1+F13) -> 1.555555556 | G6: m | J6: =J3+D14*COS(RADIANS(D23)) -> 4.994519113 | K6: =K3 -> 0 | L6: =L3-D14*SIN(RADIANS(D23)) -> -0.4069520659
B7: アスペクト比 | C7: A | D7: =D4*D4/D3 -> 6 | E7: =E4*E4/E3 -> 2.666666667 | F7: =(2*F4)*(2*F4)/(2*F3) -> 2.666666667 | G7: - | H7: 垂直尾翼アスペクト比はフルスパンで計算 | J7: =J3 -> 2.001826962 | K7: =K3 -> 0 | L7: =L3 -> -0.1976826447
B8: 後退角 | C8: Λ | D8: 30 | E8: 30 | F8: 30 | G8: deg
B9: 後退角定義位置 | C9: x/c_Λ | D9: 0 | E9: 0 | F9: 0 | G9: - | J9: =E20+E24*E14*(1-COS(RADIANS(E23))) -> 7 | K9: =E21 -> 0 | L9: =E22+E24*E14*SIN(RADIANS(E23)) -> 0
B10: 前縁後退角 | C10: Λ_LE | D10: =DEGREES(ATAN(TAN(RADIANS(D8))-(4/D7)*((0-D9)*(1-D13)/(1+D13)))) -> 30 | E10: =DEGREES(ATAN(TAN(RADIANS(E8))-(4/E7)*((0-E9)*(1-E13)/(1+E13)))) -> 30 | F10: =DEGREES(ATAN(TAN(RADIANS(F8))-(4/F7)*((0-F9)*(1-F13)/(1+F13)))) -> 30 | G10: deg | J10: =E20+(E4/2)*TAN(RADIANS(E10))+E24*E15*(1-COS(RADIANS(E23+E25))) -> 8.154700538 | K10: =(E4/2)*COS(RADIANS(E26)) -> 2 | L10: =L9+(E4/2)*SIN(RADIANS(E26))+E24*E15*SIN(RADIANS(E23+E25)) -> 0
B11: c/4後退角 | C11: Λ_c/4 | D11: =DEGREES(ATAN(TAN(RADIANS(D8))-(4/D7)*((0.25-D9)*(1-D13)/(1+D13)))) -> 26.29015193 | E11: =DEGREES(ATAN(TAN(RADIANS(E8))-(4/E7)*((0.25-E9)*(1-E13)/(1+E13)))) -> 24.33963056 | F11: =DEGREES(ATAN(TAN(RADIANS(F8))-(4/F7)*((0.25-F9)*(1-F13)/(1+F13)))) -> 24.33963056 | G11: deg | J11: =J10+E15*COS(RADIANS(E23+E25)) -> 9.154700538 | K11: =K10 -> 2 | L11: =L10-E15*SIN(RADIANS(E23+E25)) -> 0
B12: c/2後退角 | C12: Λ_c/2 | D12: =DEGREES(ATAN(TAN(RADIANS(D8))-(4/D7)*((0.5-D9)*(1-D13)/(1+D13)))) -> 22.32715209 | E12: =DEGREES(ATAN(TAN(RADIANS(E8))-(4/E7)*((0.5-E9)*(1-E13)/(1+E13)))) -> 18.12587316 | F12: =DEGREES(ATAN(TAN(RADIANS(F8))-(4/F7)*((0.5-F9)*(1-F13)/(1+F13)))) -> 18.12587316 | G12: deg | J12: =J9+E14*COS(RADIANS(E23)) -> 9 | K12: =K9 -> 0 | L12: =L9-E14*SIN(RADIANS(E23)) -> 0
B13: テーパー比 | C13: λ | D13: =D15/D14 -> 0.3333333333 | E13: =E15/E14 -> 0.5 | F13: =F15/F14 -> 0.5 | G13: - | J13: =J9 -> 7 | K13: =K9 -> 0 | L13: =L9 -> 0
B14: 翼根コード長 | C14: cr | D14: 3 | E14: 2 | F14: 2 | G14: m
B15: 翼単コード長 | C15: ct | D15: 1 | E15: 1 | F15: 1 | G15: m | J15: =F20 -> 7 | K15: =E21 -> 0 | L15: =F22 -> 0
B16: MAC位置 | C16: yMAC | D16: =(1/3)*(D4/2)*(1+2*D13)/(1+D13) -> 2.5 | E16: =(1/3)*(E4/2)*(1+2*E13)/(1+E13) -> 0.8888888889 | F16: =(1/3)*(F4/2)*(1+2*F13)/(1+F13) -> 0.4444444444 | G16: m | J16: =F20+F4*TAN(RADIANS(F10)) -> 8.154700538 | K16: =K15 -> 0 | L16: =F4 -> 2
B17: モーメント基準点 | C17: xref | D17: =D20+D16*TAN(RADIANS(D10))+0.25*D6 -> 3.98504234 | E17: =E20+E16*TAN(RADIANS(E10))+0.25*E6 -> 7.902089128 | F17: =F20+F16*TAN(RADIANS(F10))+0.25*F6 -> 7.645489009 | G17: m | J17: =J16+F15 -> 9.154700538 | K17: =K16 -> 0 | L17: =L16 -> 2
B18: モーメント基準点 | C18: yref | D18: =D21 -> 0 | E18: 0 | F18: 0 | G18: m | J18: =J15+F14 -> 9 | K18: =K17 -> 0 | L18: =L15 -> 0
B19: モーメント基準点 | C19: zref | D19: -0.25 | E19: 0 | F19: 0 | G19: m | J19: =J15 -> 7 | K19: =K18 -> 0 | L19: =L15 -> 0
B20: 翼根前縁位置 | C20: x_LE | D20: 2 | E20: 7 | F20: 7 | G20: m
B21: 翼根前縁位置 | C21: y_LE | D21: 0 | E21: 0 | F21: 0 | G21: m
B22: 翼根前縁位置 | C22: z_LE | D22: -0.25 | E22: 0 | F22: 0 | G22: m
B23: 翼根取付角 | C23: θr | D23: 4 | E23: 0 | F23: 0 | G23: deg | H23: 胴体軸基準、前縁上げ正
B24: 取付角中心位置 | C24: x/c_θ | D24: 0.25 | E24: 0 | F24: 0 | G24: -
B25: ねじり下げ | C25: θ | D25: -4 | E25: 0 | F25: 0 | G25: deg | H25: 翼根コードライン基準、ねじり下げで負
B26: 上反角 | C26: Γ | D26: 5 | E26: 0 | F26: 0 | G26: deg
B27: 空力中心位置 | C27: xac/c | G27: -
B28: 翼型 | C28: NACA four digit | D28: =TEXT(4412,"0000") -> 4412 | E28: =TEXT(10,"0000") -> 0010 | F28: =TEXT(10,"0000") -> 0010 | G28: -
C29: max. camber | D29: =VALUE(LEFT(D28,1)) -> 4 | E29: =VALUE(LEFT(E28,1)) -> 0 | F29: =VALUE(LEFT(F28,1)) -> 0 | G29: %c
C30: x/c_max. camber | D30: =MID(D28,2,1)*10 -> 40 | E30: =MID(E28,2,1)*10 -> 0 | F30: =MID(F28,2,1)*10 -> 0 | G30: %c
C31: x/c_(t/c)max | D31: 30 | E31: 30 | F31: 30 | G31: %c
C32: t/c | D32: =RIGHT(D28,2)/100 -> 0.12 | E32: =RIGHT(E28,2)/100 -> 0.1 | F32: =RIGHT(F28,2)/100 -> 0.1 | G32: -

Sheet Fuselage Geometry
D2: Body | E2: unit | F2: comment | H2: x | I2: y | J2: z
B3: 胴体長さ | C3: Lf | D3: 10 | E3: m | H3: =D20+D24*D14*(1-COS(RADIANS(D23))) -> 0 | I3: =D21 -> 0 | J3: =D22+D24*D14*SIN(RADIANS(D23)) -> 0
B4: Finess Ratio | C4: Lf/Rmax | D4: 15 | E4: - | H4: =D20+(D4/2)*TAN(RADIANS(D10))+D24*D15*(1-COS(RADIANS(D23+D25))) -> 0 | I4: =(D4/2)*COS(RADIANS(D26)) -> 7.5 | J4: =(D4/2)*SIN(RADIANS(D26))+D24*D15*SIN(RADIANS(D23+D25)) -> 0
B5: 最大胴体直径 | C5: Dmax | D5: =(D3/D4)*2 -> 1.333333333 | E5: m | H5: =H4+D15*COS(RADIANS(D23+D25)) -> 0 | I5: =I4 -> 7.5 | J5: =J4-D15*SIN(RADIANS(D23+D25)) -> 0
H6: =H3+D14*COS(RADIANS(D23)) -> 0 | I6: =I3 -> 0 | J6: =J3-D14*SIN(RADIANS(D23)) -> 0
H7: =H3 -> 0 | I7: =I3 -> 0 | J7: =J3 -> 0

Sheet LIFT
E1: Wing | F1: Tail | G1: Fin
B3: 4.1.1 | C3: design lift | D3: NACA four digit | E3: ='Wing Geometry'!D28 -> 4412 | F3: ='Wing Geometry'!E28 -> 0010 | G3: ='Wing Geometry'!F28 -> 0010 | H3: - | I3: input
D4: cl_i | E4: =IF(MID(E3,2,1)<>"0",INDEX(FIGURE!$C$29:$C$34,MID(E3,2,1)-1)*(MID(E3,1,1)/6),0) -> 0.5066666667 | F4: =IF(MID(F3,2,1)<>"0",INDEX(FIGURE!$C$29:$C$34,MID(F3,2,1)-1)*(MID(F3,2,1)/6),0) -> 0 | G4: =IF(MID(G3,2,1)<>"0",INDEX(FIGURE!$C$29:$C$34,MID(G3,2,1)-1)*(MID(G3,2,1)/6),0) -> 0 | H4: - | I4: 4.1.1
D5: alpha_i | E5: =IF(MID(E3,2,1)<>"0",INDEX(FIGURE!$D$29:$D$34,MID(E3,2,1)-1)*(MID(E3,1,1)/6),0) -> 0.4933333333 | F5: =IF(MID(F3,2,1)<>"0",INDEX(FIGURE!$D$29:$D$34,MID(F3,2,1)-1)*(MID(F3,1,1)/6),0) -> 0 | G5: =IF(MID(G3,2,1)<>"0",INDEX(FIGURE!$D$29:$D$34,MID(G3,2,1)-1)*(MID(G3,1,1)/6),0) -> 0 | H5: deg | I5: 4.1.1
B7: 4.1.1.2 | C7: 2次元揚力傾斜 | D7: NACA four digit | E7: ='Wing Geometry'!D$28 -> 4412 | F7: ='Wing Geometry'!E$28 -> 0010 | G7: ='Wing Geometry'!F$28 -> 0010 | H7: - | I7: input
D8: log10(Re) | E8: =LOG10(Summary!$D$8) -> 6.648352327 | F8: =LOG10(Summary!$D$8) -> 6.648352327 | G8: =LOG10(Summary!$D$8) -> 6.648352327 | H8: - | I8: input
D9: t/c | E9: ='Wing Geometry'!D$32 -> 0.12 | F9: ='Wing Geometry'!E$32 -> 0.1 | G9: ='Wing Geometry'!F$32 -> 0.1 | H9: - | I9: input
D10: β | E10: =Summary!$D$10 -> 0.9961063181 | F10: =Summary!$D$10 -> 0.9961063181 | G10: =Summary!$D$10 -> 0.9961063181 | H10: - | I10: input
D11: Y90/2 | E11: =5*RIGHT(E7,2)*(0.2969*SQRT(0.9)-0.126*0.9-0.3516*(0.9^2)+0.2843*(0.9^3)-0.1015*(0.9^4)) -> 1.447717271 | F11: =5*RIGHT(F7,2)*(0.2969*SQRT(0.9)-0.126*0.9-0.3516*(0.9^2)+0.2843*(0.9^3)-0.1015*(0.9^4)) -> 1.20643106 | G11: =5*RIGHT(G7,2)*(0.2969*SQRT(0.9)-0.126*0.9-0.3516*(0.9^2)+0.2843*(0.9^3)-0.1015*(0.9^4)) -> 1.20643106 | H11: %c | I11: calculated
D12: Y99/2 | E12: =5*RIGHT(E7,2)*(0.2969*SQRT(0.99)-0.126*0.99-0.3516*(0.99^2)+0.2843*(0.99^3)-0.1015*(0.99^4)) -> 0.2654472457 | F12: =5*RIGHT(F7,2)*(0.2969*SQRT(0.99)-0.126*0.99-0.3516*(0.99^2)+0.2843*(0.99^3)-0.1015*(0.99^4)) -> 0.2212060381 | G12: 0.2212060381 | H12: %c | I12: calculated
D13: tan((1/2)phi'_TE) | E13: =(E11-E12)/9 -> 0.1313633362 | F13: =(F11-F12)/9 -> 0.1094694468 | G13: =(G11-G12)/9 -> 0.1094694468 | H13: - | I13: 4.1.1.2-8a
D14: cla/cla_theory | E14: =Interpolation2D(E13,E8,FIGURE!$B$40:$B$50,FIGURE!$C$38:$E$38,FIGURE!$C$40:$E$50) -> 0.8185152683 | F14: =Interpolation2D(F13,F8,FIGURE!$B$40:$B$50,FIGURE!$C$38:$E$38,FIGURE!$C$40:$E$50) -> 0.8395332038 | G14: =Interpolation2D(G13,G8,FIGURE!$B$40:$B$50,FIGURE!$C$38:$E$38,FIGURE!$C$40:$E$50) -> 0.8395332038 | H14: - | I14: 4.1.1.2-8a
D15: cla_theory | E15: =6.28+4.7*E9*(1+0.00375*20) -> 6.8863 | F15: =6.28+4.7*F9*(1+0.00375*20) -> 6.78525 | G15: =6.28+4.7*G9*(1+0.00375*20) -> 6.78525 | H15: 1/rad | I15: 4.1.1.2-8b
D16: (cla)M | E16: =(1.05/E10)*E14*E15 -> 5.941503099 | F16: =(1.05/F10)*F14*F15 -> 6.004644982 | G16: =(1.05/G10)*G14*G15 -> 6.004644982 | H16: 1/rad | I16: 4.1.1.2-a
B18: 4.1.1.4 | C18: 2次元最大揚力係数 | D18: t/c | E18: ='Wing Geometry'!D$32 -> 0.12 | F18: ='Wing Geometry'!E$32 -> 0.1 | G18: ='Wing Geometry'!F$32 -> 0.1 | H18: - | I18: input
D19: x/c_(t/c)max | E19: ='Wing Geometry'!D$31 -> 30 | F19: ='Wing Geometry'!E$31 -> 30 | G19: ='Wing Geometry'!F$31 -> 30 | H19: %c | I19: input
D20: max. camber | E20: ='Wing Geometry'!D$29 -> 4 | F20: ='Wing Geometry'!E$29 -> 0 | G20: ='Wing Geometry'!F$29 -> 0 | H20: %c | I20: input
D21: x/c_max. camber | E21: ='Wing Geometry'!D$30 -> 40 | F21: ='Wing Geometry'!E$30 -> 0 | G21: ='Wing Geometry'!F$30 -> 0 | H21: %c | I21: input
D22: log10(Re) | E22: =LOG10(Summary!$D$8) -> 6.648352327 | F22: =LOG10(Summary!$D$8) -> 6.648352327 | G22: =LOG10(Summary!$D$8) -> 6.648352327 | H22: - | I22: input
D23: Δy | E23: =Interpolation1D(E18,FIGURE!$B$4:$B$24,FIGURE!$C$4:$C$24) -> 3.072536009 | F23: =Interpolation1D(F18,FIGURE!$B$4:$B$24,FIGURE!$C$4:$C$24) -> 2.599328261 | G23: =Interpolation1D(G18,FIGURE!$B$4:$B$24,FIGURE!$C$4:$C$24) -> 2.599328261 | H23: %c | I23: 2.2.1-8
D24: clmax_base | E24: =Interpolation2D(E23,E19,FIGURE!$B$74:$B$92,FIGURE!$C$72:$F$72,FIGURE!$C$74:$F$92) -> 1.571575137 | F24: =Interpolation2D(F23,F19,FIGURE!$B$74:$B$92,FIGURE!$C$72:$F$72,FIGURE!$C$74:$F$92) -> 1.4664632 | G24: =Interpolation2D(G23,G19,FIGURE!$B$74:$B$92,FIGURE!$C$72:$F$72,FIGURE!$C$74:$F$92) -> 1.4664632 | H24: - | I24: 4.1.1.4-5
D25: Δ1_clmax | E25: =Interpolation3D(E23,E20,E21,FIGURE!$H$74:$H$94,FIGURE!$I$72:$L$72,FIGURE!$L$71,FIGURE!$I$74:$L$94,FIGURE!$N$74:$N$89,FIGURE!$O$72:$R$72,FIGURE!$R$71,FIGURE!$O$74:$R$89,FIGURE!$T$74:$T$89,FIGURE!$U$72:$X$72,FIGURE!$X$71,FIGURE!$U$74:$X$89,FIGURE!$Z$74:$Z$89,FIGURE!$AA$72:$AD$72,FIGURE!$AD$71,FIGURE!$AA$74:$AD$89) -> 0.1739207892 | F25: =Interpolation3D(F23,F20,F21,FIGURE!$H$74:$H$94,FIGURE!$I$72:$L$72,FIGURE!$L$71,FIGURE!$I$74:$L$94,FIGURE!$N$74:$N$89,FIGURE!$O$72:$R$72,FIGURE!$R$71,FIGURE!$O$74:$R$89,FIGURE!$T$74:$T$89,FIGURE!$U$72:$X$72,FIGURE!$X$71,FIGURE!$U$74:$X$89,FIGURE!$Z$74:$Z$89,FIGURE!$AA$72:$AD$72,FIGURE!$AD$71,FIGURE!$AA$74:$AD$89) -> 0 | G25: =Interpolation3D(G23,G20,G21,FIGURE!$H$74:$H$94,FIGURE!$I$72:$L$72,FIGURE!$L$71,FIGURE!$I$74:$L$94,FIGURE!$N$74:$N$89,FIGURE!$O$72:$R$72,FIGURE!$R$71,FIGURE!$O$74:$R$89,FIGURE!$T$74:$T$89,FIGURE!$U$72:$X$72,FIGURE!$X$71,FIGURE!$U$74:$X$89,FIGURE!$Z$74:$Z$89,FIGURE!$AA$72:$AD$72,FIGURE!$AD$71,FIGURE!$AA$74:$AD$89) -> 0 | H25: - | I25: 4.1.1.4-6
D26: Δ2_clmax | E26: =Interpolation2D(E23,E19,FIGURE!$AF$74:$AF$91,FIGURE!$AG$72:$AJ$72,FIGURE!$AG$74:$AJ$91) -> 0 | F26: =Interpolation2D(F23,F19,FIGURE!$AF$74:$AF$91,FIGURE!$AG$72:$AJ$72,FIGURE!$AG$74:$AJ$91) -> 0 | G26: =Interpolation2D(G23,G19,FIGURE!$AF$74:$AF$91,FIGURE!$AG$72:$AJ$72,FIGURE!$AG$74:$AJ$91) -> 0 | H26: - | I26: 4.1.1.4-7a
D27: Δ3_clmax | E27: =Interpolation2D(E23,E22,FIGURE!$AL$74:$AL$89,FIGURE!$AM$72:$AP$72,FIGURE!$AM$74:$AP$89) -> -0.07760309805 | F27: =Interpolation2D(F23,F22,FIGURE!$AL$74:$AL$89,FIGURE!$AM$72:$AP$72,FIGURE!$AM$74:$AP$89) -> -0.05614827339 | G27: =Interpolation2D(G23,G22,FIGURE!$AL$74:$AL$89,FIGURE!$AM$72:$AP$72,FIGURE!$AM$74:$AP$89) -> -0.05614827339 | H27: - | I27: 4.1.1.4-7a
D28: Δ4_clmax | E28: 0 | F28: 0 | G28: 0 | H28: - | I28: 4.1.1.4-8a
D29: Δ5_clmax | E29: 0 | F29: 0 | G29: 0 | H29: - | I29: 4.1.1.4-8b
D30: clmax | E30: =SUM(E24:E29) -> 1.667892828 | F30: =SUM(F24:F29) -> 1.410314926 | G30: =SUM(G24:G29) -> 1.410314926 | H30: - | I30: 4.1.1.4-a
B32: 4.1.3.1 | C32: ゼロ揚力角 | D32: AR | E32: ='Wing Geometry'!D$7 -> 6 | F32: ='Wing Geometry'!E$7 -> 2.666666667 | G32: ='Wing Geometry'!F$7 -> 2.666666667 | H32: - | I32: input
D33: λ | E33: ='Wing Geometry'!D$13 -> 0.3333333333 | F33: ='Wing Geometry'!E$13 -> 0.5 | G33: ='Wing Geometry'!F$13 -> 0.5 | H33: - | I33: input
D34: Λ_c/4 | E34: ='Wing Geometry'!D$11 -> 26.29015193 | F34: ='Wing Geometry'!E$11 -> 24.33963056 | G34: ='Wing Geometry'!F$11 -> 24.33963056 | H34: deg | I34: input
D35: θ | E35: ='Wing Geometry'!D$25 -> -4 | F35: ='Wing Geometry'!E$25 -> 0 | G35: ='Wing Geometry'!F$25 -> 0 | H35: deg | I35: input
D36: θr | E36: ='Wing Geometry'!D$23 -> 4 | F36: ='Wing Geometry'!E$23 -> 0 | G36: ='Wing Geometry'!F$23 -> 0 | H36: deg | I36: input
D37: cl_i | E37: =E4 -> 0.5066666667 | F37: 0 | G37: 0 | H37: - | I37: 4.1.1
D38: alpha_i | E38: 0.4933333333 | F38: 0 | G38: 0 | H38: deg | I38: 4.1.1
D39: (cla)M | E39: =E16 -> 5.941503099 | F39: =F16 -> 6.004644982 | G39: 6.004644982 | H39: 1/rad | I39: 4.1.1.2-a
D40: alpha0_theta=0 | E40: =E38-(E37/RADIANS(E39)) -> -4.392612383 | F40: =F38-(F37/RADIANS(F39)) -> 0 | G40: 0 | H40: deg | I40: 4.1.3.1-a
D41: Δalpha0/theta | E41: =Interpolation3D(E34,E32,E33,FIGURE!$B$56:$B$68,FIGURE!$C$54:$E$54,FIGURE!$E$53,FIGURE!$C$56:$E$68,FIGURE!$G$56:$G$68,FIGURE!$H$54:$J$54,FIGURE!$J$53,FIGURE!$H$56:$J$68,FIGURE!$L$56:$L$68,FIGURE!$M$54:$P$54,FIGURE!$P$53,FIGURE!$M$56:$P$68) -> -0.383878695 | F41: =Interpolation3D(F34,F32,F33,FIGURE!$B$56:$B$68,FIGURE!$C$54:$E$54,FIGURE!$E$53,FIGURE!$C$56:$E$68,FIGURE!$G$56:$G$68,FIGURE!$H$54:$J$54,FIGURE!$J$53,FIGURE!$H$56:$J$68,FIGURE!$L$56:$L$68,FIGURE!$M$54:$P$54,FIGURE!$P$53,FIGURE!$M$56:$P$68) -> -0.400454852 | G41: =Interpolation3D(G34,G32,G33,FIGURE!$B$56:$B$68,FIGURE!$C$54:$E$54,FIGURE!$E$53,FIGURE!$C$56:$E$68,FIGURE!$G$56:$G$68,FIGURE!$H$54:$J$54,FIGURE!$J$53,FIGURE!$H$56:$J$68,FIGURE!$L$56:$L$68,FIGURE!$M$54:$P$54,FIGURE!$P$53,FIGURE!$M$56:$P$68) -> -0.400454852 | I41: 4.1.3.1-4
D42: alpha0 | E42: =E40+E41*E35 -> -2.857097603 | F42: =F40+F41*F35 -> 0 | G42: =G40+G41*G35 -> 0 | H42: deg | I42: 4.1.3.1-c | J42: 翼根コードライン基準
D43: alpha0 | E43: =E42-E36 -> -6.857097603 | F43: =F42-F36 -> 0 | G43: =G42-G36 -> 0 | H43: deg | I43: 4.1.3.1-c
B45: 4.1.3.2 | C45: 3次元揚力傾斜 | D45: β | E45: =Summary!$D$10 -> 0.9961063181 | F45: =Summary!$D$10 -> 0.9961063181 | G45: =Summary!$D$10 -> 0.9961063181 | H45: - | I45: input
D46: Λ_c/2 | E46: ='Wing Geometry'!D$12 -> 22.32715209 | F46: ='Wing Geometry'!E$12 -> 18.12587316 | G46: ='Wing Geometry'!F$12 -> 18.12587316 | H46: deg | I46: input
D47: be | E47: =E57-E56 -> 10.66666667 | F47: =F57-F56 -> 3.2 | G47: =G57-G56/2 -> 1.6 | H47: m | I47: input | J47: Exposed Wing
D48: Ae | E48: =(E47*E47)/E59 -> 5.647058824 | F48: =(F47*F47)/F59 -> 2.285714286 | G48: =(2*G47*2*G47)/(2*G59) -> 2.285714286 | H48: - | I48: input | J48: Exposed Wing
D49: (cla)M | E49: =E16 -> 5.941503099 | F49: =F16 -> 6.004644982 | G49: 6.004644982 | H49: 1/rad | I49: 4.1.1.2-a
D50: κ | E50: =E49/(2*PI()/E45) -> 0.9419376458 | F50: =F49/(2*PI()/F45) -> 0.9519478596 | G50: 0.9519478596 | H50: - | I50: calculated
D51: (Cla)e | E51: =(2*PI()*E48)/(2+SQRT((E48^2)/(E50^2)*(E45^2+(TAN(RADIANS(E46)))^2)+4)) -> 4.049482522 | F51: =(2*PI()*F48)/(2+SQRT((F48^2)/(F50^2)*(F45^2+(TAN(RADIANS(F46)))^2)+4)) -> 2.753731398 | G51: 2.753731398 | H51: 1/rad | I51: 4.1.3.2
B53: 4.1.3.4 | C53: 3次元最大揚力係数 | D53: alpha_CLmax | E53: =VLM!T3 -> 12.32645972 | F53: - | G53: - | H53: deg | I53: 4.1.3.4
D54: CLmax | E54: =VLM!T2 -> 1.406953912 | F54: - | G54: - | H54: - | I54: 4.1.3.4
B56: 4.3.1.2 | C56: 翼胴３次元揚力傾斜 | D56: Dmax | E56: ='Fuselage Geometry'!D5 -> 1.333333333 | F56: =E56*0.6 -> 0.8 | G56: =F56 -> 0.8 | H56: m | I56: input
D57: bref | E57: ='Wing Geometry'!D$4 -> 12 | F57: ='Wing Geometry'!E$4 -> 4 | G57: ='Wing Geometry'!F$4 -> 2 | H57: m | I57: input
D58: Sref | E58: ='Wing Geometry'!D$3 -> 24 | F58: ='Wing Geometry'!E$3 -> 6 | G58: ='Wing Geometry'!F$3 -> 3 | H58: m | I58: input
D59: Se | E59: =E58-(E77+E77*(1+(E33-1)*(E56/E57)))*E56/2 -> 20.14814815 | F59: =F58-(F77+F77*(1+(F33-1)*(F56/F57)))*F56/2 -> 4.48 | G59: =(G58*2-(G77+G77*(1+(G33-1)*(G56/(G57*2))))*G56/2)/2 -> 2.24 | H59: ㎡ | I59: input | J59: Exposed Wing
D60: (Cla)e | E60: =E51 -> 4.049482522 | F60: =F51 -> 2.753731398 | G60: 2.753731398 | H60: 1/rad | I60: 4.1.3.2
D61: (CLa)N | E61: 2 | F61: - | G61: - | H61: 1/rad | I61: 4.3.1.2-4
D62: SNref | E62: =PI()*(E56/2)^2 -> 1.396263402 | F62: - | G62: - | H62: ㎡ | I62: 4.3.1.2-4
D63: b/d | E63: =E56/E57 -> 0.1111111111 | F63: =F56/F57 -> 0.2 | G63: =G56/(G57*2) -> 0.2 | H63: - | I63: calculated
D64: KN | E64: =(E61*E62)/(E60*E59) -> 0.0342265154 | F64: - | G64: - | H64: - | I64: 4.3.1.2-4
D65: KW(B) | E65: =Interpolation1D(E63,FIGURE!$B$132:$B$142,FIGURE!$D$132:$D$142) -> 1.089790977 | F65: =Interpolation1D(F63,FIGURE!$B$132:$B$142,FIGURE!$D$132:$D$142) -> 1.170017749 | G65: =Interpolation1D(G63,FIGURE!$B$132:$B$142,FIGURE!$D$132:$D$142) -> 1.170017749 | H65: - | I65: 4.3.4.2-10
D66: KB(W) | E66: =Interpolation1D(E63,FIGURE!$B$132:$B$142,FIGURE!$C$132:$C$142) -> 0.1489301835 | F66: =Interpolation1D(F63,FIGURE!$B$132:$B$142,FIGURE!$C$132:$C$142) -> 0.2824635161 | G66: =Interpolation1D(G63,FIGURE!$B$132:$B$142,FIGURE!$C$132:$C$142) -> 0.2824635161 | H66: - | I66: 4.3.4.2-10
D67: (CLa)WB | E67: =E60*(E64+E65+E66)*(E59/E58) -> 4.327469096 | F67: =F60*(F65+F66)*(F59/F58) -> 2.986474971 | G67: =G60*(G65+G66)*(G59/G58) -> 2.986474971 | H67: 1/rad | I67: 4.3.1.2-a/b
B69: 4.4.1 | C69: 吹き下ろし角 @水平尾翼MAC | D69: α | E69: 0 | F69: =E69+F36-E108 -> -3.561177305 | G69: - | H69: - | I69: input
D70: alpha0 | E70: =E43 -> -6.857097603 | F70: =F43 -> 0 | G70: 0 | H70: deg | I70: 4.1.3.1-c
D71: alpha_CLmax | E71: =E53 -> 12.32645972 | F71: - | G71: - | H71: deg | I71: 4.1.3.4
D72: λ | E72: ='Wing Geometry'!D$13 -> 0.3333333333 | F72: ='Wing Geometry'!E$13 -> 0.5 | G72: ='Wing Geometry'!F$13 -> 0.5 | H72: - | I72: input
D73: Λ_c/4 | E73: ='Wing Geometry'!D$11 -> 26.29015193 | F73: ='Wing Geometry'!E$11 -> 24.33963056 | G73: ='Wing Geometry'!F$11 -> 24.33963056 | H73: deg | I73: input
D74: AR | E74: ='Wing Geometry'!D$7 -> 6 | F74: ='Wing Geometry'!E$7 -> 2.666666667 | G74: ='Wing Geometry'!F$7 -> 2.666666667 | H74: - | I74: input
D75: bref | E75: ='Wing Geometry'!D$4 -> 12 | F75: ='Wing Geometry'!E$4 -> 4 | G75: ='Wing Geometry'!F$4 -> 2 | H75: m | I75: input
D76: cMAC | E76: ='Wing Geometry'!D$6 -> 2.166666667 | F76: ='Wing Geometry'!E$6 -> 1.555555556 | G76: ='Wing Geometry'!F$6 -> 1.555555556 | H76: m | I76: input
D77: cr | E77: ='Wing Geometry'!D$14 -> 3 | F77: ='Wing Geometry'!E$14 -> 2 | G77: ='Wing Geometry'!F$14 -> 2 | H77: m | I77: input
D78: ct | E78: ='Wing Geometry'!D$15 -> 1 | F78: ='Wing Geometry'!E$15 -> 1 | G78: ='Wing Geometry'!F$15 -> 1 | H78: m | I78: input
D79: xref | E79: ='Wing Geometry'!D$17 -> 3.98504234 | F79: ='Wing Geometry'!E$17 -> 7.902089128 | G79: ='Wing Geometry'!F$17 -> 7.645489009 | H79: m | I79: input
D80: zref | E80: ='Wing Geometry'!D$19 -> -0.25 | F80: ='Wing Geometry'!E$19 -> 0 | G80: ='Wing Geometry'!F$19 -> 0 | H80: m | I80: input
D81: xLE | E81: ='Wing Geometry'!D$20 -> 2 | F81: ='Wing Geometry'!E$20 -> 7 | G81: ='Wing Geometry'!F$20 -> 7 | H81: m | I81: input
D82: Λ_LE | E82: ='Wing Geometry'!D$10 -> 30 | F82: ='Wing Geometry'!E$10 -> 30 | G82: ='Wing Geometry'!F$10 -> 30 | H82: deg | I82: input
D83: Γ | E83: ='Wing Geometry'!D$26 -> 5 | F83: ='Wing Geometry'!E$26 -> 0 | G83: ='Wing Geometry'!F$26 -> 0 | H83: deg | I83: input
D84: θr | E84: ='Wing Geometry'!D$23 -> 4 | F84: ='Wing Geometry'!E$23 -> 0 | G84: ='Wing Geometry'!F$23 -> 0 | H84: deg | I84: input
D85: Δy | E85: =E23 -> 3.072536009 | F85: =F23 -> 2.599328261 | G85: 2.599328261 | H85: %c | I85: 2.2.1-8
D86: CD0 | E86: =DRAG!E20 -> 0.008524782508 | F86: =DRAG!F20 -> 0.008284157019 | G86: =DRAG!G20 -> 0.008284157019 | H86: - | I86: 4.1.5.1-a
D87: (CL)W | E87: =E60*RADIANS((E69+E36)-E42) -> 0.4846377365 | F87: =F60*RADIANS((F69+F36)-F42) -> -0.1711561627 | G87: - | H87: - | I87: calculated
D88: (α-α0)/(αCLmax-α0) | E88: =(E69-E70)/(E71-E70) -> 0.3574466137 | F88: - | G88: - | H88: - | I88: calculated
D89: Aeff/A | E89: =Interpolation2D(Interpolation2D(E88,E73,FIGURE!$B$100:$B$104,FIGURE!$C$98:$F$98,FIGURE!$C$100:$F$104),E72,FIGURE!$H$100:$H$101,FIGURE!$I$98:$K$98,FIGURE!$I$100:$K$101) -> 1 | F89: - | G89: - | H89: - | I89: 4.4.1-66
D90: beff/b | E90: =IF(E89=1,1,Interpolation2D(E89,E72,FIGURE!$M$100:$M$106,FIGURE!$N$98:$O$98,FIGURE!$N$100:$O$106)) -> 1 | F90: - | G90: - | H90: - | I90: 4.4.1-66
D91: Aeff | E91: =E89*E74 -> 6 | F91: - | G91: - | H91: - | I91: calculated
D92: beff | E92: =E90*E75 -> 12 | F92: - | G92: - | H92: m | I92: calculated
D93: l2 | E93: =ABS(F79-(E81+E77)) -> 2.902089128 | F93: - | G93: - | H93: m | I93: 4.4.1-4
D94: l2/(b/2) | E94: =E93/(E75/2) -> 0.4836815214 | F94: - | G94: - | H94: - | I94: calculated
D95: (∂ε/∂α)∞ | E95: =Interpolation2D(E91,E73,FIGURE!$AE$100:$AE$108,FIGURE!$AF$98:$AI$98,FIGURE!$AF$100:$AI$108) -> 0.361798112 | F95: - | G95: - | H95: - | I95: 4.4.1-67
D96: (∂ε/∂α)v | E96: =E95+0.2*(Interpolation2D(E94,E91,FIGURE!$Q$100:$Q$110,FIGURE!$R$98:$W$98,FIGURE!$R$100:$W$110)/2.5*Interpolation2D(E91,E73,FIGURE!$Y$100:$Y$108,FIGURE!$Z$98:$AC$98,FIGURE!$Z$100:$AC$108)) -> 0.5079396446 | F96: - | G96: - | H96: - | I96: 4.4.1-67
D97: hH | E97: =ABS(F80-E80) -> 0.25 | F97: - | G97: - | H97: m | I97: 4.4.1-5
D98: leff | E98: =F79-(E81+(E75/2)*TAN(RADIANS(E82))+0.25*E78) -> 2.187987513 | F98: - | G98: - | H98: m | I98: 4.4.1-5
D99: l3 | E99: =ABS((E79-0.25*E76)-(E81+E77)) -> 1.556624327 | F99: - | G99: - | H99: m | I99: 4.4.1-6
D100: a | E100: =E97-IF(Interpolation1D(E73,FIGURE!$AK$99:$AK$110,FIGURE!$AM$99:$AM$110)<E85,E98,IF(Interpolation1D(E73,FIGURE!$AK$99:$AK$110,FIGURE!$AL$99:$AL$110)>E85,E93+E99,"Caution!"))*(RADIANS(E69)-(0.41*E87)/(PI()*E91))-(E92/2)*TAN(RADIANS(E83)) -> -0.251867441 | F100: - | G100: - | H100: m | I100: 4.4.1-c
D101: ξru | E101: =(0.56*E74)/E87 -> 6.933013562 | F101: - | G101: - | H101: - | I101: 4.4.1-f
D102: bv_ru | E102: =(0.78+0.1*(E72-0.4)+0.003*E73)*E92 -> 10.22644547 | F102: - | G102: - | H102: m | I102: 4.4.1-f
D103: bv | E103: =E92-(E92-E102)*((2*E98)/(E75*E101))^(1/2) -> 11.59324742 | F103: - | G103: - | H103: m | I103: 4.4.1-e
D104: 2a/bv | E104: =ABS((E100)/(E103/2)) -> 0.04345071434 | F104: - | G104: - | H104: - | I104: 4.4.1-68b
D105: bH/bv | E105: =F75/E103 -> 0.3450284338 | F105: - | G105: - | H105: - | I105: 4.4.1-68b
D106: (∂ε/∂α)/(∂ε/∂α)v | E106: =Interpolation2D(E105,E104,FIGURE!$AP$100:$AP$108,FIGURE!$AQ$98:$AT$98,FIGURE!$AQ$100:$AT$108) -> 1.022447824 | F106: - | G106: - | H106: - | I106: 4.4.1-68b
D107: ∂ε/∂α | E107: =E96*E106 -> 0.5193417844 | F107: - | G107: - | H107: - | I107: 4.4.1-6
D108: ε | E108: =E107*(E69-E70) -> 3.561177305 | F108: - | G108: - | H108: - | I108: 4.4.1-7
C109: 動圧比 @水平尾翼MAC | D109: x | E109: =F79-(E81+E77) -> 2.902089128 | F109: - | G109: - | H109: m | I109: 4.4.1-10
D110: x/cMAC | E110: =E109/E76 -> 1.339425751 | F110: - | G110: - | H110: - | I110: calculated
D111: zw/cMAC | E111: =0.68*SQRT(DRAG!E20*(E110+0.15)) -> 0.07662314889 | F111: - | G111: - | H111: - | I111: 4.4.1-j
D112: zw | E112: =E111*E76 -> 0.1660168226 | F112: - | G112: - | H112: m
D113: ε | E113: =DEGREES((1.62*E87)/(PI()*E74)) -> 2.386457758 | F113: - | G113: - | H113: deg | I113: 4.4.1-k
D114: γ | E114: =E84+DEGREES(ATAN((F80-(E80-E77*0.75*SIN(RADIANS(E84))))/(F79-(E81+E77*COS(RADIANS(E84)))))) -> 11.96258914 | F114: - | G114: - | H114: deg | I114: 4.4.1-11
D115: z | E115: =E109*TAN(RADIANS(E114+E113-(E69+E84))) -> 0.5299656999 | F115: - | G115: - | H115: m | I115: 4.4.1-l
D116: (Δq/q)0 | E116: =(2.42*SQRT(DRAG!E20))/(E110+0.3) -> 0.1362904004 | F116: - | G116: - | H116: - | I116: 4.4.1-m
D117: Δq/q | E117: =E116*(COS((PI()/2)*(E115/E112)))^2 -> 0.01205468462 | F117: - | G117: - | H117: - | I117: 4.4.1-n
D118: q/q∞ | E118: =IF(ABS(E115/E112)>1,1,1-E117) -> 1 | F118: - | G118: - | H118: - | I118: 4.4.1-o
C120: WING-BODY-TAIL 揚力 | D120: Sref | E120: ='Wing Geometry'!D$3 -> 24 | F120: ='Wing Geometry'!E$3 -> 6 | G120: ='Wing Geometry'!F$3 -> 3 | H120: m | I120: input
D121: (CL)W | E121: =E87 -> 0.4846377365 | F121: =F87 -> -0.1711561627 | G121: - | H121: - | I121: calculated
D122: CL | E122: =E121+F121*(F120/E120) -> 0.4418486958 | F122: - | G122: - | H122: - | I122: calculated
B124: 4.5.1.1 | C124: WING-BODY-TAIL 揚力傾斜 | D124: Sref | E124: ='Wing Geometry'!D$3 -> 24 | F124: ='Wing Geometry'!E$3 -> 6 | G124: ='Wing Geometry'!F$3 -> 3 | H124: m | I124: input
D125: (CLa)WB | E125: =$E$67 -> 4.327469096 | F125: =$F$67 -> 2.986474971 | G125: =$G$67 -> 2.986474971 | H125: 1/rad | I125: 4.3.1.2-a/b
D126: ∂ε/∂α | E126: =E107 -> 0.5193417844 | F126: - | G126: - | H126: - | I126: 4.4.1-6
D127: q/q∞ | E127: =E118 -> 1 | F127: - | G127: - | H127: - | I127: 4.4.1-o
D128: CLa | E128: =E125+F125*(1-E126)*E127*(F124/E124) -> 4.686337529 | F128: - | G128: - | H128: 1/rad | I128: 4.5.1.1

Sheet DRAG
E1: Wing | F1: Tail | G1: Fin | H1: unit | I1: comment
B3: 4.1.5.1 | C3: ゼロ揚力有害抗力係数 | D3: Sref | E3: ='Wing Geometry'!D$3 -> 24 | F3: ='Wing Geometry'!E$3 -> 6 | G3: ='Wing Geometry'!F$3 -> 3 | H3: m | I3: input
D4: Swet | E4: =LIFT!E58*2 -> 48 | F4: =LIFT!F58*2 -> 12 | G4: =LIFT!G58*2 -> 6 | H4: ㎡ | I4: input
D5: cMAC | E5: ='Wing Geometry'!D$6 -> 2.166666667 | F5: ='Wing Geometry'!E$6 -> 1.555555556 | G5: ='Wing Geometry'!F$6 -> 1.555555556 | H5: m | I5: input
D6: AR | E6: ='Wing Geometry'!D$7 -> 6 | F6: ='Wing Geometry'!E$7 -> 2.666666667 | G6: ='Wing Geometry'!F$7 -> 2.666666667 | H6: - | I6: input
D7: Λ_LE | E7: ='Wing Geometry'!D$10 -> 30 | F7: ='Wing Geometry'!E$10 -> 30 | G7: ='Wing Geometry'!F$10 -> 30 | H7: deg | I7: input
D8: λ | E8: ='Wing Geometry'!D$13 -> 0.3333333333 | F8: ='Wing Geometry'!E$13 -> 0.5 | G8: ='Wing Geometry'!F$13 -> 0.5 | H8: - | I8: input
D9: M | E9: =Summary!$D$9 -> 0.08816009874 | F9: =Summary!$D$9 -> 0.08816009874 | G9: =Summary!$D$9 -> 0.08816009874 | H9: - | I9: input
D10: t/c | E10: ='Wing Geometry'!D$32 -> 0.12 | F10: ='Wing Geometry'!E$32 -> 0.1 | G10: ='Wing Geometry'!F$32 -> 0.1 | H10: - | I10: input
D11: x/c_(t/c)max | E11: ='Wing Geometry'!D$31 -> 30 | F11: ='Wing Geometry'!E$31 -> 30 | G11: ='Wing Geometry'!F$31 -> 30 | H11: %c | I11: input
D12: k | E12: =0.08*0.001 -> 8e-05 | F12: =E12 -> 8e-05 | G12: =E12 -> 8e-05 | H12: ich | I12: 4.1.5.1-A
D13: l/k | E13: =IF(E12<>0,(39.3701*E5)/E12,"-") -> 1066273.542 | F13: =IF(F12<>0,(39.3701*F5)/F12,"-") -> 765529.7222 | G13: =IF(G12<>0,(39.3701*G5)/G12,"-") -> 765529.7222 | H13: - | I13: calculated
D14: Re_cutoff | E14: =IF(E12<>0,Interpolation2D(E13,E9,FIGURE!$H$116:$H$123,FIGURE!$I$114:$L$114,FIGURE!$I$116:$L$123),"-") -> 83502841.76 | F14: =IF(F12<>0,Interpolation2D(F13,F9,FIGURE!$H$116:$H$123,FIGURE!$I$114:$L$114,FIGURE!$I$116:$L$123),"-") -> 59936657.58 | G14: =IF(G12<>0,Interpolation2D(G13,G9,FIGURE!$H$116:$H$123,FIGURE!$I$114:$L$114,FIGURE!$I$116:$L$123),"-") -> 59936657.58 | H14: - | I14: 4.1.5.1-27
D15: log10(Re_calclated) | E15: =IF(E12<>0,MIN(LOG10(E14),LOG10(Summary!$D$8)),LOG10(Summary!$D$8)) -> 6.648352327 | F15: =IF(F12<>0,MIN(LOG10(F14),LOG10(Summary!$D$8)),LOG10(Summary!$D$8)) -> 6.648352327 | G15: =IF(G12<>0,MIN(LOG10(G14),LOG10(Summary!$D$8)),LOG10(Summary!$D$8)) -> 6.648352327 | H15: - | I15: calculated
D16: Cf | E16: =Interpolation2D(E15,E9,FIGURE!$B$116:$B$127,FIGURE!$C$114:$F$114,FIGURE!$C$116:$F$127) -> 0.003456144286 | F16: =Interpolation2D(F15,F9,FIGURE!$B$116:$B$127,FIGURE!$C$114:$F$114,FIGURE!$C$116:$F$127) -> 0.003456144286 | G16: =Interpolation2D(G15,G9,FIGURE!$B$116:$B$127,FIGURE!$C$114:$F$114,FIGURE!$C$116:$F$127) -> 0.003456144286 | H16: - | I16: 4.1.5.1-26
D17: L | E17: =IF(E11>=30,1.2,2) -> 1.2 | F17: =IF(F11>=30,1.2,2) -> 1.2 | G17: =IF(G11>=30,1.2,2) -> 1.2 | H17: - | I17: 4.1.5.1-2
D18: cos(Λ(t/c)max) | E18: =COS(RADIANS(DEGREES(ATAN(TAN(RADIANS(E7))-(4/E6)*((E11/100-0)*(1-E8)/(1+E8)))))) -> 0.9024538338 | F18: =COS(RADIANS(DEGREES(ATAN(TAN(RADIANS(F7))-(4/F6)*((F11/100-0)*(1-F8)/(1+F8)))))) -> 0.9195511144 | G18: =COS(RADIANS(DEGREES(ATAN(TAN(RADIANS(G7))-(4/G6)*((G11/100-0)*(1-G8)/(1+G8)))))) -> 0.9195511144 | H18: - | I18: calculated
D19: R_L.S. | E19: =Interpolation2D(E18,E9,FIGURE!$N$116:$N$126,FIGURE!$O$114:$R$114,FIGURE!$O$116:$R$126) -> 1.058848798 | F19: =Interpolation2D(F18,F9,FIGURE!$N$116:$N$126,FIGURE!$O$114:$R$114,FIGURE!$O$116:$R$126) -> 1.060591196 | G19: =Interpolation2D(G18,G9,FIGURE!$N$116:$N$126,FIGURE!$O$114:$R$114,FIGURE!$O$116:$R$126) -> 1.060591196 | H19: - | I19: 4.1.5.1-28b
D20: CD0 | E20: =E16*(1+E17*E10+100*(E10^4))*E19*(E4/E3) -> 0.008524782508 | F20: =F16*(1+F17*F10+100*(F10^4))*F19*(F4/F3) -> 0.008284157019 | G20: =G16*(1+G17*G10+100*(G10^4))*G19*(G4/G3) -> 0.008284157019 | H20: - | I20: 4.1.5.1-a

Sheet VLM
B2: cr | C2: ='Wing Geometry'!D14 -> 3 | D2: CL | E2: 0.53302812 | F2: 0.6748248422 | G2: 0.8166215643 | H2: 0.9584182865 | I2: 1.100215009 | J2: 1.242011731 | K2: 1.383808453 | L2: 1.525605175 | M2: 1.667401897 | N2: 1.809198619 | O2: 1.950995342 | S2: CL | T2: =Interpolation1D(T3,E3:O3,E2:O2) -> 1.406953912
B3: λ | C3: ='Wing Geometry'!D13 -> 0.3333333333 | D3: alpha | E3: 0 | F3: 2 | G3: 4 | H3: 6 | I3: 8 | J3: 10 | K3: 12 | L3: 14 | M3: 16 | N3: 18 | O3: 20 | S3: alpha | T3: 12.32645972 | U3: =MAX(U5:U33) -> 0 | V3: ←ゴールシーク(S3)
B4: n | C4: y | D4: eta | E4: cl | F4: cl | G4: cl | H4: cl | I4: cl | J4: cl | K4: cl | L4: cl | M4: cl | N4: cl | O4: cl | Q4: Chord | R4: Re_local | S4: clmax | T4: cl | U4: Δ
B5: 1 | C5: =-('Wing Geometry'!$D$4/2)*COS(PI()/(COUNT($B:$B)-1)*(B5-1)) -> -6 | D5: =C5/(Summary!$D$7/2) -> -1 | E5: 0 | F5: 0 | G5: 0 | H5: 0 | I5: 0 | J5: 0 | K5: 0 | L5: 0 | M5: 0 | N5: 0 | O5: 0 | Q5: =$C$2*(1+($C$3-1)*ABS(D5)) -> 1 | R5: =Summary!$D$8*(Q5/Summary!$D$6) -> 2053809.817 | S5: =LIFT!$E$30-LIFT!$E$27+Interpolation2D(LIFT!$E$23,LOG10(R5),FIGURE!$AL$74:$AL$89,FIGURE!$AM$72:$AP$72,FIGURE!$AM$74:$AP$89) -> 1.61505625 | T5: =Interpolation2D(D5,$T$3,$D$5:$D$45,$E$3:$O$3,$E$5:$O$45) -> 0 | U5: =T5-S5 -> -1.61505625
B6: 2 | C6: =-('Wing Geometry'!$D$4/2)*COS(PI()/(COUNT($B:$B)-1)*(B6-1)) -> -5.981504002 | D6: =C6/(Summary!$D$7/2) -> -0.9969173337 | E6: 0.1803746867 | F6: 0.2351388452 | G6: 0.2899030038 | H6: 0.3446671623 | I6: 0.3994313209 | J6: 0.4541954794 | K6: 0.508959638 | L6: 0.5637237965 | M6: 0.6184879551 | N6: 0.6732521136 | O6: 0.7280162722 | Q6: =$C$2*(1+($C$3-1)*ABS(D6)) -> 1.006165333 | R6: =Summary!$D$8*(Q6/Summary!$D$6) -> 2066472.238 | S6: =LIFT!$E$30-LIFT!$E$27+Interpolation2D(LIFT!$E$23,LOG10(R6),FIGURE!$AL$74:$AL$89,FIGURE!$AM$72:$AP$72,FIGURE!$AM$74:$AP$89) -> 1.61505625 | T6: =Interpolation2D(D6,$T$3,$D$5:$D$45,$E$3:$O$3,$E$5:$O$45) -> 0.5178987839 | U6: =T6-S6 -> -1.097157466
B7: 3 | C7: =-('Wing Geometry'!$D$4/2)*COS(PI()/(COUNT($B:$B)-1)*(B7-1)) -> -5.926130044 | D7: =C7/(Summary!$D$7/2) -> -0.9876883406 | E7: 0.2711928393 | F7: 0.3539041785 | G7: 0.4366155176 | H7: 0.5193268568 | I7: 0.6020381959 | J7: 0.6847495351 | K7: 0.7674608742 | L7: 0.8501722134 | M7: 0.9328835525 | N7: 1.015594892 | O7: 1.098306231 | Q7: 1.024623319 | R7: =Summary!$D$8*(Q7/Summary!$D$6) -> 2104381.431 | S7: =LIFT!$E$30-LIFT!$E$27+Interpolation2D(LIFT!$E$23,LOG10(R7),FIGURE!$AL$74:$AL$89,FIGURE!$AM$72:$AP$72,FIGURE!$AM$74:$AP$89) -> 1.61505625 | T7: =Interpolation2D(D7,$T$3,$D$5:$D$45,$E$3:$O$3,$E$5:$O$45) -> 0.7809618345 | U7: -0.8340944159
B8: 4 | C8: =-('Wing Geometry'!$D$4/2)*COS(PI()/(COUNT($B:$B)-1)*(B8-1)) -> -5.834219522 | D8: =C8/(Summary!$D$7/2) -> -0.9723699204 | E8: 0.3528711437 | F8: 0.4611062556 | G8: 0.5693413674 | H8: 0.6775764793 | I8: 0.7858115911 | J8: 0.894046703 | K8: 1.002281815 | L8: 1.110516927 | M8: 1.218752039 | N8: 1.32698715 | O8: 1.435222262 | Q8: 1.055260159 | R8: =Summary!$D$8*(Q8/Summary!$D$6) -> 2167303.675 | S8: =LIFT!$E$30-LIFT!$E$27+Interpolation2D(LIFT!$E$23,LOG10(R8),FIGURE!$AL$74:$AL$89,FIGURE!$AM$72:$AP$72,FIGURE!$AM$74:$AP$89) -> 1.61505625 | T8: =Interpolation2D(D8,$T$3,$D$5:$D$45,$E$3:$O$3,$E$5:$O$45) -> 1.019949017 | U8: -0.5951072334
B9: 5 | C9: =-('Wing Geometry'!$D$4/2)*COS(PI()/(COUNT($B:$B)-1)*(B9-1)) -> -5.706339098 | D9: =C9/(Summary!$D$7/2) -> -0.9510565163 | E9: 0.419722046 | F9: 0.5490277948 | G9: 0.6783335436 | H9: 0.8076392925 | I9: 0.9369450413 | J9: 1.06625079 | K9: 1.195556539 | L9: 1.324862288 | M9: 1.454168037 | N9: 1.583473785 | O9: 1.712779534 | Q9: 1.097886967 | R9: =Summary!$D$8*(Q9/Summary!$D$6) -> 2254851.032 | S9: =LIFT!$E$30-LIFT!$E$27+Interpolation2D(LIFT!$E$23,LOG10(R9),FIGURE!$AL$74:$AL$89,FIGURE!$AM$72:$AP$72,FIGURE!$AM$74:$AP$89) -> 1.61505625 | T9: =Interpolation2D(D9,$T$3,$D$5:$D$45,$E$3:$O$3,$E$5:$O$45) -> 1.216663098 | U9: -0.3983931522
B10: 6 | C10: =-('Wing Geometry'!$D$4/2)*COS(PI()/(COUNT($B:$B)-1)*(B10-1)) -> -5.543277195 | D10: =C10/(Summary!$D$7/2) -> -0.9238795325 | E10: 0.4714911992 | F10: 0.6169031791 | G10: 0.7623151591 | H10: 0.907727139 | I10: 1.053139119 | J10: 1.198551099 | K10: 1.343963079 | L10: 1.489375059 | M10: 1.634787039 | N10: 1.780199019 | O10: 1.925610999 | Q10: 1.152240935 | R10: =Summary!$D$8*(Q10/Summary!$D$6) -> 2366483.744 | S10: =LIFT!$E$30-LIFT!$E$27+Interpolation2D(LIFT!$E$23,LOG10(R10),FIGURE!$AL$74:$AL$89,FIGURE!$AM$72:$AP$72,FIGURE!$AM$74:$AP$89) -> 1.61505625 | T10: =Interpolation2D(D10,$T$3,$D$5:$D$45,$E$3:$O$3,$E$5:$O$45) -> 1.367698656 | U10: -0.2473575945
B11: 7 | C11: =-('Wing Geometry'!$D$4/2)*COS(PI()/(COUNT($B:$B)-1)*(B11-1)) -> -5.346039145 | D11: =C11/(Summary!$D$7/2) -> -0.8910065242 | E11: 0.5100611855 | F11: 0.6668137886 | G11: 0.8235663917 | H11: 0.9803189947 | I11: 1.137071598 | J11: 1.293824201 | K11: 1.450576804 | L11: 1.607329407 | M11: 1.76408201 | N11: 1.920834613 | O11: 2.077587216 | Q11: 1.217986952 | R11: =Summary!$D$8*(Q11/Summary!$D$6) -> 2501513.558 | S11: =LIFT!$E$30-LIFT!$E$27+Interpolation2D(LIFT!$E$23,LOG10(R11),FIGURE!$AL$74:$AL$89,FIGURE!$AM$72:$AP$72,FIGURE!$AM$74:$AP$89) -> 1.61505625 | T11: =Interpolation2D(D11,$T$3,$D$5:$D$45,$E$3:$O$3,$E$5:$O$45) -> 1.476163509 | U11: -0.138892741
B12: 8 | C12: =-('Wing Geometry'!$D$4/2)*COS(PI()/(COUNT($B:$B)-1)*(B12-1)) -> -5.115840986 | D12: =C12/(Summary!$D$7/2) -> -0.8526401644 | E12: 0.5381537336 | F12: 0.7021318105 | G12: 0.8661098873 | H12: 1.030087964 | I12: 1.194066041 | J12: 1.358044118 | K12: 1.522022195 | L12: 1.686000272 | M12: 1.849978348 | N12: 2.013956425 | O12: 2.177934502 | Q12: 1.294719671 | R12: =Summary!$D$8*(Q12/Summary!$D$6) -> 2659107.971 | S12: =LIFT!$E$30-LIFT!$E$27+Interpolation2D(LIFT!$E$23,LOG10(R12),FIGURE!$AL$74:$AL$89,FIGURE!$AM$72:$AP$72,FIGURE!$AM$74:$AP$89) -> 1.61505625 | T12: =Interpolation2D(D12,$T$3,$D$5:$D$45,$E$3:$O$3,$E$5:$O$45) -> 1.548788313 | U12: -0.06626793717
B13: 9 | C13: =-('Wing Geometry'!$D$4/2)*COS(PI()/(COUNT($B:$B)-1)*(B13-1)) -> -4.854101966 | D13: =C13/(Summary!$D$7/2) -> -0.8090169944 | E13: 0.558391375 | F13: 0.7263121632 | G13: 0.8942329514 | H13: 1.06215374 | I13: 1.230074528 | J13: 1.397995316 | K13: 1.565916104 | L13: 1.733836893 | M13: 1.901757681 | N13: 2.069678469 | O13: 2.237599257 | Q13: 1.381966011 | R13: =Summary!$D$8*(Q13/Summary!$D$6) -> 2838295.361 | S13: =LIFT!$E$30-LIFT!$E$27+Interpolation2D(LIFT!$E$23,LOG10(R13),FIGURE!$AL$74:$AL$89,FIGURE!$AM$72:$AP$72,FIGURE!$AM$74:$AP$89) -> 1.61505625 | T13: =Interpolation2D(D13,$T$3,$D$5:$D$45,$E$3:$O$3,$E$5:$O$45) -> 1.593325791 | U13: -0.02173045941
B14: 10 | C14: =-('Wing Geometry'!$D$4/2)*COS(PI()/(COUNT($B:$B)-1)*(B14-1)) -> -4.562435794 | D14: =C14/(Summary!$D$7/2) -> -0.7604059656 | E14: 0.5728359998 | F14: 0.7422124129 | G14: 0.911588826 | H14: 1.080965239 | I14: 1.250341652 | J14: 1.419718065 | K14: 1.589094478 | L14: 1.758470891 | M14: 1.927847304 | N14: 2.097223718 | O14: 2.266600131 | Q14: 1.479188069 | R14: =Summary!$D$8*(Q14/Summary!$D$6) -> 3037970.977 | S14: =LIFT!$E$30-LIFT!$E$27+Interpolation2D(LIFT!$E$23,LOG10(R14),FIGURE!$AL$74:$AL$89,FIGURE!$AM$72:$AP$72,FIGURE!$AM$74:$AP$89) -> 1.616741766 | T14: =Interpolation2D(D14,$T$3,$D$5:$D$45,$E$3:$O$3,$E$5:$O$45) -> 1.616741766 | U14: 0
B15: 11 | C15: =-('Wing Geometry'!$D$4/2)*COS(PI()/(COUNT($B:$B)-1)*(B15-1)) -> -4.242640687 | D15: =C15/(Summary!$D$7/2) -> -0.7071067812 | E15: 0.5829130219 | F15: 0.7519051598 | G15: 0.9208972978 | H15: 1.089889436 | I15: 1.258881574 | J15: 1.427873712 | K15: 1.59686585 | L15: 1.765857988 | M15: 1.934850125 | N15: 2.103842263 | O15: 2.272834401 | Q15: 1.585786438 | R15: =Summary!$D$8*(Q15/Summary!$D$6) -> 3256903.754 | S15: =LIFT!$E$30-LIFT!$E$27+Interpolation2D(LIFT!$E$23,LOG10(R15),FIGURE!$AL$74:$AL$89,FIGURE!$AM$72:$AP$72,FIGURE!$AM$74:$AP$89) -> 1.62606712 | T15: =Interpolation2D(D15,$T$3,$D$5:$D$45,$E$3:$O$3,$E$5:$O$45) -> 1.624450413 | U15: -0.001616707377
B16: 12 | C16: =-('Wing Geometry'!$D$4/2)*COS(PI()/(COUNT($B:$B)-1)*(B16-1)) -> -3.89668829 | D16: =C16/(Summary!$D$7/2) -> -0.6494480483 | E16: 0.5895110304 | F16: 0.7567567624 | G16: 0.9240024943 | H16: 1.091248226 | I16: 1.258493958 | J16: 1.42573969 | K16: 1.592985422 | L16: 1.760231154 | M16: 1.927476886 | N16: 2.094722618 | O16: 2.26196835 | Q16: 1.701103903 | R16: =Summary!$D$8*(Q16/Summary!$D$6) -> 3493743.897 | S16: =LIFT!$E$30-LIFT!$E$27+Interpolation2D(LIFT!$E$23,LOG10(R16),FIGURE!$AL$74:$AL$89,FIGURE!$AM$72:$AP$72,FIGURE!$AM$74:$AP$89) -> 1.635474194 | T16: =Interpolation2D(D16,$T$3,$D$5:$D$45,$E$3:$O$3,$E$5:$O$45) -> 1.620284919 | U16: -0.0151892746
B17: 13 | C17: =-('Wing Geometry'!$D$4/2)*COS(PI()/(COUNT($B:$B)-1)*(B17-1)) -> -3.526711514 | D17: =C17/(Summary!$D$7/2) -> -0.5877852523 | E17: 0.593113677 | F17: 0.7575831411 | G17: 0.9220526051 | H17: 1.086522069 | I17: 1.250991533 | J17: 1.415460997 | K17: 1.579930461 | L17: 1.744399925 | M17: 1.908869389 | N17: 2.073338853 | O17: 2.237808317 | Q17: 1.824429495 | R17: =Summary!$D$8*(Q17/Summary!$D$6) -> 3747031.208 | S17: =LIFT!$E$30-LIFT!$E$27+Interpolation2D(LIFT!$E$23,LOG10(R17),FIGURE!$AL$74:$AL$89,FIGURE!$AM$72:$AP$72,FIGURE!$AM$74:$AP$89) -> 1.644853528 | T17: =Interpolation2D(D17,$T$3,$D$5:$D$45,$E$3:$O$3,$E$5:$O$45) -> 1.606776789 | U17: -0.03807673984
B18: 14 | C18: =-('Wing Geometry'!$D$4/2)*COS(PI()/(COUNT($B:$B)-1)*(B18-1)) -> -3.134991388 | D18: =C18/(Summary!$D$7/2) -> -0.5224985647 | E18: 0.59390929 | F18: 0.7547941754 | G18: 0.9156790608 | H18: 1.076563946 | I18: 1.237448832 | J18: 1.398333717 | K18: 1.559218602 | L18: 1.720103488 | M18: 1.880988373 | N18: 2.041873259 | O18: 2.202758144 | Q18: 1.955002871 | R18: =Summary!$D$8*(Q18/Summary!$D$6) -> 4015204.088 | S18: =LIFT!$E$30-LIFT!$E$27+Interpolation2D(LIFT!$E$23,LOG10(R18),FIGURE!$AL$74:$AL$89,FIGURE!$AM$72:$AP$72,FIGURE!$AM$74:$AP$89) -> 1.654116863 | T18: =Interpolation2D(D18,$T$3,$D$5:$D$45,$E$3:$O$3,$E$5:$O$45) -> 1.58547982 | U18: -0.06863704314
B19: 15 | C19: =-('Wing Geometry'!$D$4/2)*COS(PI()/(COUNT($B:$B)-1)*(B19-1)) -> -2.723942998 | D19: =C19/(Summary!$D$7/2) -> -0.4539904997 | E19: 0.5918682781 | F19: 0.7485020456 | G19: 0.9051358132 | H19: 1.061769581 | I19: 1.218403348 | J19: 1.375037116 | K19: 1.531670883 | L19: 1.688304651 | M19: 1.844938418 | N19: 2.001572186 | O19: 2.158205954 | Q19: 2.092019001 | R19: =Summary!$D$8*(Q19/Summary!$D$6) -> 4296609.161 | S19: =LIFT!$E$30-LIFT!$E$27+Interpolation2D(LIFT!$E$23,LOG10(R19),FIGURE!$AL$74:$AL$89,FIGURE!$AM$72:$AP$72,FIGURE!$AM$74:$AP$89) -> 1.663194411 | T19: =Interpolation2D(D19,$T$3,$D$5:$D$45,$E$3:$O$3,$E$5:$O$45) -> 1.557238191 | U19: -0.10595622
B20: 16 | C20: =-('Wing Geometry'!$D$4/2)*COS(PI()/(COUNT($B:$B)-1)*(B20-1)) -> -2.296100594 | D20: =C20/(Summary!$D$7/2) -> -0.3826834324 | E20: 0.586792442 | F20: 0.7385944097 | G20: 0.8903963775 | H20: 1.042198345 | I20: 1.194000313 | J20: 1.345802281 | K20: 1.497604248 | L20: 1.649406216 | M20: 1.801208184 | N20: 1.953010152 | O20: 2.104812119 | Q20: 2.234633135 | R20: =Summary!$D$8*(Q20/Summary!$D$6) -> 4589511.471 | S20: =LIFT!$E$30-LIFT!$E$27+Interpolation2D(LIFT!$E$23,LOG10(R20),FIGURE!$AL$74:$AL$89,FIGURE!$AM$72:$AP$72,FIGURE!$AM$74:$AP$89) -> 1.672032012 | T20: =Interpolation2D(D20,$T$3,$D$5:$D$45,$E$3:$O$3,$E$5:$O$45) -> 1.522382862 | U20: -0.1496491493
B21: 17 | C21: =-('Wing Geometry'!$D$4/2)*COS(PI()/(COUNT($B:$B)-1)*(B21-1)) -> -1.854101966 | D21: =C21/(Summary!$D$7/2) -> -0.3090169944 | E21: 0.5783430685 | F21: 0.7247808615 | G21: 0.8712186544 | H21: 1.017656447 | I21: 1.16409424 | J21: 1.310532033 | K21: 1.456969826 | L21: 1.603407619 | M21: 1.749845412 | N21: 1.896283205 | O21: 2.042720998 | Q21: 2.381966011 | R21: =Summary!$D$8*(Q21/Summary!$D$6) -> 4892105.178 | S21: =LIFT!$E$30-LIFT!$E$27+Interpolation2D(LIFT!$E$23,LOG10(R21),FIGURE!$AL$74:$AL$89,FIGURE!$AM$72:$AP$72,FIGURE!$AM$74:$AP$89) -> 1.680588418 | T21: =Interpolation2D(D21,$T$3,$D$5:$D$45,$E$3:$O$3,$E$5:$O$45) -> 1.480872847 | U21: -0.1997155716
B22: 18 | C22: =-('Wing Geometry'!$D$4/2)*COS(PI()/(COUNT($B:$B)-1)*(B22-1)) -> -1.400672183 | D22: =C22/(Summary!$D$7/2) -> -0.2334453639 | E22: 0.5660558955 | F22: 0.7066245159 | G22: 0.8471931363 | H22: 0.9877617566 | I22: 1.128330377 | J22: 1.268898997 | K22: 1.409467618 | L22: 1.550036238 | M22: 1.690604858 | N22: 1.831173479 | O22: 1.971742099 | Q22: 2.533109272 | R22: =Summary!$D$8*(Q22/Summary!$D$6) -> 5202524.691 | S22: =LIFT!$E$30-LIFT!$E$27+Interpolation2D(LIFT!$E$23,LOG10(R22),FIGURE!$AL$74:$AL$89,FIGURE!$AM$72:$AP$72,FIGURE!$AM$74:$AP$89) -> 1.688832874 | T22: =Interpolation2D(D22,$T$3,$D$5:$D$45,$E$3:$O$3,$E$5:$O$45) -> 1.432412614 | U22: -0.2564202597
B23: 19 | C23: =-('Wing Geometry'!$D$4/2)*COS(PI()/(COUNT($B:$B)-1)*(B23-1)) -> -0.9386067902 | D23: =C23/(Summary!$D$7/2) -> -0.156434465 | E23: 0.5493595052 | F23: 0.6835824679 | G23: 0.8178054305 | H23: 0.9520283931 | I23: 1.086251356 | J23: 1.220474318 | K23: 1.354697281 | L23: 1.488920244 | M23: 1.623143206 | N23: 1.757366169 | O23: 1.891589132 | Q23: 2.68713107 | R23: =Summary!$D$8*(Q23/Summary!$D$6) -> 5518856.172 | S23: =LIFT!$E$30-LIFT!$E$27+Interpolation2D(LIFT!$E$23,LOG10(R23),FIGURE!$AL$74:$AL$89,FIGURE!$AM$72:$AP$72,FIGURE!$AM$74:$AP$89) -> 1.696743013 | T23: =Interpolation2D(D23,$T$3,$D$5:$D$45,$E$3:$O$3,$E$5:$O$45) -> 1.376606476 | U23: -0.3201365371
B24: 20 | C24: =-('Wing Geometry'!$D$4/2)*COS(PI()/(COUNT($B:$B)-1)*(B24-1)) -> -0.4707545744 | D24: =C24/(Summary!$D$7/2) -> -0.07845909573 | E24: 0.5276780003 | F24: 0.6551597396 | G24: 0.7826414788 | H24: 0.9101232181 | I24: 1.037604957 | J24: 1.165086697 | K24: 1.292568436 | L24: 1.420050175 | M24: 1.547531914 | N24: 1.675013654 | O24: 1.802495393 | Q24: 2.843081809 | R24: =Summary!$D$8*(Q24/Summary!$D$6) -> 5839149.33 | S24: =LIFT!$E$30-LIFT!$E$27+Interpolation2D(LIFT!$E$23,LOG10(R24),FIGURE!$AL$74:$AL$89,FIGURE!$AM$72:$AP$72,FIGURE!$AM$74:$AP$89) -> 1.704303107 | T24: =Interpolation2D(D24,$T$3,$D$5:$D$45,$E$3:$O$3,$E$5:$O$45) -> 1.313377262 | U24: -0.3909258446
B25: 21 | C25: =-('Wing Geometry'!$D$4/2)*COS(PI()/(COUNT($B:$B)-1)*(B25-1)) -> -3.675445365e-16 | D25: =C25/(Summary!$D$7/2) -> -6.125742275e-17 | E25: 0.5023749983 | F25: 0.6232462553 | G25: 0.7441175122 | H25: 0.8649887691 | I25: 0.9858600261 | J25: 1.106731283 | K25: 1.22760254 | L25: 1.348473797 | M25: 1.469345054 | N25: 1.590216311 | O25: 1.711087568 | Q25: 3 | R25: =Summary!$D$8*(Q25/Summary!$D$6) -> 6161429.452 | S25: =LIFT!$E$30-LIFT!$E$27+Interpolation2D(LIFT!$E$23,LOG10(R25),FIGURE!$AL$74:$AL$89,FIGURE!$AM$72:$AP$72,FIGURE!$AM$74:$AP$89) -> 1.710403538 | T25: =Interpolation2D(D25,$T$3,$D$5:$D$45,$E$3:$O$3,$E$5:$O$45) -> 1.247332338 | U25: -0.4630711999
B26: 22 | C26: =-('Wing Geometry'!$D$4/2)*COS(PI()/(COUNT($B:$B)-1)*(B26-1)) -> 0.4707545744 | D26: =C26/(Summary!$D$7/2) -> 0.07845909573 | E26: 0.5276780003 | F26: 0.6551597396 | G26: 0.7826414788 | H26: 0.9101232181 | I26: 1.037604957 | J26: 1.165086697 | K26: 1.292568436 | L26: 1.420050175 | M26: 1.547531914 | N26: 1.675013654 | O26: 1.802495393 | Q26: 2.843081809 | R26: =Summary!$D$8*(Q26/Summary!$D$6) -> 5839149.33 | S26: =LIFT!$E$30-LIFT!$E$27+Interpolation2D(LIFT!$E$23,LOG10(R26),FIGURE!$AL$74:$AL$89,FIGURE!$AM$72:$AP$72,FIGURE!$AM$74:$AP$89) -> 1.704303107 | T26: =Interpolation2D(D26,$T$3,$D$5:$D$45,$E$3:$O$3,$E$5:$O$45) -> 1.313377262 | U26: -0.3909258446
B27: 23 | C27: =-('Wing Geometry'!$D$4/2)*COS(PI()/(COUNT($B:$B)-1)*(B27-1)) -> 0.9386067902 | D27: =C27/(Summary!$D$7/2) -> 0.156434465 | E27: 0.5493595052 | F27: 0.6835824679 | G27: 0.8178054305 | H27: 0.9520283931 | I27: 1.086251356 | J27: 1.220474318 | K27: 1.354697281 | L27: 1.488920244 | M27: 1.623143206 | N27: 1.757366169 | O27: 1.891589132 | Q27: 2.68713107 | R27: =Summary!$D$8*(Q27/Summary!$D$6) -> 5518856.172 | S27: =LIFT!$E$30-LIFT!$E$27+Interpolation2D(LIFT!$E$23,LOG10(R27),FIGURE!$AL$74:$AL$89,FIGURE!$AM$72:$AP$72,FIGURE!$AM$74:$AP$89) -> 1.696743013 | T27: =Interpolation2D(D27,$T$3,$D$5:$D$45,$E$3:$O$3,$E$5:$O$45) -> 1.376606476 | U27: -0.3201365371
B28: 24 | C28: =-('Wing Geometry'!$D$4/2)*COS(PI()/(COUNT($B:$B)-1)*(B28-1)) -> 1.400672183 | D28: =C28/(Summary!$D$7/2) -> 0.2334453639 | E28: 0.5660558955 | F28: 0.7066245159 | G28: 0.8471931363 | H28: 0.9877617566 | I28: 1.128330377 | J28: 1.268898997 | K28: 1.409467618 | L28: 1.550036238 | M28: 1.690604858 | N28: 1.831173479 | O28: 1.971742099 | Q28: 2.533109272 | R28: =Summary!$D$8*(Q28/Summary!$D$6) -> 5202524.691 | S28: =LIFT!$E$30-LIFT!$E$27+Interpolation2D(LIFT!$E$23,LOG10(R28),FIGURE!$AL$74:$AL$89,FIGURE!$AM$72:$AP$72,FIGURE!$AM$74:$AP$89) -> 1.688832874 | T28: =Interpolation2D(D28,$T$3,$D$5:$D$45,$E$3:$O$3,$E$5:$O$45) -> 1.432412614 | U28: -0.2564202597
B29: 25 | C29: =-('Wing Geometry'!$D$4/2)*COS(PI()/(COUNT($B:$B)-1)*(B29-1)) -> 1.854101966 | D29: =C29/(Summary!$D$7/2) -> 0.3090169944 | E29: 0.5783430685 | F29: 0.7247808615 | G29: 0.8712186544 | H29: 1.017656447 | I29: 1.16409424 | J29: 1.310532033 | K29: 1.456969826 | L29: 1.603407619 | M29: 1.749845412 | N29: 1.896283205 | O29: 2.042720998 | Q29: 2.381966011 | R29: =Summary!$D$8*(Q29/Summary!$D$6) -> 4892105.178 | S29: =LIFT!$E$30-LIFT!$E$27+Interpolation2D(LIFT!$E$23,LOG10(R29),FIGURE!$AL$74:$AL$89,FIGURE!$AM$72:$AP$72,FIGURE!$AM$74:$AP$89) -> 1.680588418 | T29: =Interpolation2D(D29,$T$3,$D$5:$D$45,$E$3:$O$3,$E$5:$O$45) -> 1.480872847 | U29: -0.1997155716
B30: 26 | C30: =-('Wing Geometry'!$D$4/2)*COS(PI()/(COUNT($B:$B)-1)*(B30-1)) -> 2.296100594 | D30: =C30/(Summary!$D$7/2) -> 0.3826834324 | E30: 0.586792442 | F30: 0.7385944097 | G30: 0.8903963775 | H30: 1.042198345 | I30: 1.194000313 | J30: 1.345802281 | K30: 1.497604248 | L30: 1.649406216 | M30: 1.801208184 | N30: 1.953010152 | O30: 2.104812119 | Q30: 2.234633135 | R30: =Summary!$D$8*(Q30/Summary!$D$6) -> 4589511.471 | S30: =LIFT!$E$30-LIFT!$E$27+Interpolation2D(LIFT!$E$23,LOG10(R30),FIGURE!$AL$74:$AL$89,FIGURE!$AM$72:$AP$72,FIGURE!$AM$74:$AP$89) -> 1.672032012 | T30: =Interpolation2D(D30,$T$3,$D$5:$D$45,$E$3:$O$3,$E$5:$O$45) -> 1.522382862 | U30: -0.1496491493
B31: 27 | C31: =-('Wing Geometry'!$D$4/2)*COS(PI()/(COUNT($B:$B)-1)*(B31-1)) -> 2.723942998 | D31: =C31/(Summary!$D$7/2) -> 0.4539904997 | E31: 0.5918682781 | F31: 0.7485020456 | G31: 0.9051358132 | H31: 1.061769581 | I31: 1.218403348 | J31: 1.375037116 | K31: 1.531670883 | L31: 1.688304651 | M31: 1.844938418 | N31: 2.001572186 | O31: 2.158205954 | Q31: 2.092019001 | R31: =Summary!$D$8*(Q31/Summary!$D$6) -> 4296609.161 | S31: =LIFT!$E$30-LIFT!$E$27+Interpolation2D(LIFT!$E$23,LOG10(R31),FIGURE!$AL$74:$AL$89,FIGURE!$AM$72:$AP$72,FIGURE!$AM$74:$AP$89) -> 1.663194411 | T31: =Interpolation2D(D31,$T$3,$D$5:$D$45,$E$3:$O$3,$E$5:$O$45) -> 1.557238191 | U31: -0.10595622
B32: 28 | C32: =-('Wing Geometry'!$D$4/2)*COS(PI()/(COUNT($B:$B)-1)*(B32-1)) -> 3.134991388 | D32: =C32/(Summary!$D$7/2) -> 0.5224985647 | E32: 0.59390929 | F32: 0.7547941754 | G32: 0.9156790608 | H32: 1.076563946 | I32: 1.237448832 | J32: 1.398333717 | K32: 1.559218602 | L32: 1.720103488 | M32: 1.880988373 | N32: 2.041873259 | O32: 2.202758144 | Q32: 1.955002871 | R32: =Summary!$D$8*(Q32/Summary!$D$6) -> 4015204.088 | S32: =LIFT!$E$30-LIFT!$E$27+Interpolation2D(LIFT!$E$23,LOG10(R32),FIGURE!$AL$74:$AL$89,FIGURE!$AM$72:$AP$72,FIGURE!$AM$74:$AP$89) -> 1.654116863 | T32: =Interpolation2D(D32,$T$3,$D$5:$D$45,$E$3:$O$3,$E$5:$O$45) -> 1.58547982 | U32: -0.06863704314
B33: 29 | C33: =-('Wing Geometry'!$D$4/2)*COS(PI()/(COUNT($B:$B)-1)*(B33-1)) -> 3.526711514 | D33: =C33/(Summary!$D$7/2) -> 0.5877852523 | E33: 0.593113677 | F33: 0.7575831411 | G33: 0.9220526051 | H33: 1.086522069 | I33: 1.250991533 | J33: 1.415460997 | K33: 1.579930461 | L33: 1.744399925 | M33: 1.908869389 | N33: 2.073338853 | O33: 2.237808317 | Q33: 1.824429495 | R33: =Summary!$D$8*(Q33/Summary!$D$6) -> 3747031.208 | S33: =LIFT!$E$30-LIFT!$E$27+Interpolation2D(LIFT!$E$23,LOG10(R33),FIGURE!$AL$74:$AL$89,FIGURE!$AM$72:$AP$72,FIGURE!$AM$74:$AP$89) -> 1.644853528 | T33: =Interpolation2D(D33,$T$3,$D$5:$D$45,$E$3:$O$3,$E$5:$O$45) -> 1.606776789 | U33: -0.03807673984
B34: 30 | C34: =-('Wing Geometry'!$D$4/2)*COS(PI()/(COUNT($B:$B)-1)*(B34-1)) -> 3.89668829 | D34: =C34/(Summary!$D$7/2) -> 0.6494480483 | E34: 0.5895110304 | F34: 0.7567567624 | G34: 0.9240024943 | H34: 1.091248226 | I34: 1.258493958 | J34: 1.42573969 | K34: 1.592985422 | L34: 1.760231154 | M34: 1.927476886 | N34: 2.094722618 | O34: 2.26196835 | Q34: 1.701103903 | R34: =Summary!$D$8*(Q34/Summary!$D$6) -> 3493743.897 | S34: =LIFT!$E$30-LIFT!$E$27+Interpolation2D(LIFT!$E$23,LOG10(R34),FIGURE!$AL$74:$AL$89,FIGURE!$AM$72:$AP$72,FIGURE!$AM$74:$AP$89) -> 1.635474194 | T34: =Interpolation2D(D34,$T$3,$D$5:$D$45,$E$3:$O$3,$E$5:$O$45) -> 1.620284919 | U34: -0.0151892746
B35: 31 | C35: =-('Wing Geometry'!$D$4/2)*COS(PI()/(COUNT($B:$B)-1)*(B35-1)) -> 4.242640687 | D35: =C35/(Summary!$D$7/2) -> 0.7071067812 | E35: 0.5829130219 | F35: 0.7519051598 | G35: 0.9208972978 | H35: 1.089889436 | I35: 1.258881574 | J35: 1.427873712 | K35: 1.59686585 | L35: 1.765857988 | M35: 1.934850125 | N35: 2.103842263 | O35: 2.272834401 | Q35: 1.585786438 | R35: =Summary!$D$8*(Q35/Summary!$D$6) -> 3256903.754 | S35: =LIFT!$E$30-LIFT!$E$27+Interpolation2D(LIFT!$E$23,LOG10(R35),FIGURE!$AL$74:$AL$89,FIGURE!$AM$72:$AP$72,FIGURE!$AM$74:$AP$89) -> 1.62606712 | T35: =Interpolation2D(D35,$T$3,$D$5:$D$45,$E$3:$O$3,$E$5:$O$45) -> 1.624450413 | U35: -0.001616707377
B36: 32 | C36: =-('Wing Geometry'!$D$4/2)*COS(PI()/(COUNT($B:$B)-1)*(B36-1)) -> 4.562435794 | D36: =C36/(Summary!$D$7/2) -> 0.7604059656 | E36: 0.5728359998 | F36: 0.7422124129 | G36: 0.911588826 | H36: 1.080965239 | I36: 1.250341652 | J36: 1.419718065 | K36: 1.589094478 | L36: 1.758470891 | M36: 1.927847304 | N36: 2.097223718 | O36: 2.266600131 | Q36: 1.479188069 | R36: =Summary!$D$8*(Q36/Summary!$D$6) -> 3037970.977 | S36: =LIFT!$E$30-LIFT!$E$27+Interpolation2D(LIFT!$E$23,LOG10(R36),FIGURE!$AL$74:$AL$89,FIGURE!$AM$72:$AP$72,FIGURE!$AM$74:$AP$89) -> 1.616741766 | T36: =Interpolation2D(D36,$T$3,$D$5:$D$45,$E$3:$O$3,$E$5:$O$45) -> 1.616741766 | U36: -1.998401444e-15
B37: 33 | C37: =-('Wing Geometry'!$D$4/2)*COS(PI()/(COUNT($B:$B)-1)*(B37-1)) -> 4.854101966 | D37: =C37/(Summary!$D$7/2) -> 0.8090169944 | E37: 0.558391375 | F37: 0.7263121632 | G37: 0.8942329514 | H37: 1.06215374 | I37: 1.230074528 | J37: 1.397995316 | K37: 1.565916104 | L37: 1.733836893 | M37: 1.901757681 | N37: 2.069678469 | O37: 2.237599257 | Q37: 1.381966011 | R37: =Summary!$D$8*(Q37/Summary!$D$6) -> 2838295.361 | S37: =LIFT!$E$30-LIFT!$E$27+Interpolation2D(LIFT!$E$23,LOG10(R37),FIGURE!$AL$74:$AL$89,FIGURE!$AM$72:$AP$72,FIGURE!$AM$74:$AP$89) -> 1.61505625 | T37: =Interpolation2D(D37,$T$3,$D$5:$D$45,$E$3:$O$3,$E$5:$O$45) -> 1.593325791 | U37: -0.02173045941
B38: 34 | C38: =-('Wing Geometry'!$D$4/2)*COS(PI()/(COUNT($B:$B)-1)*(B38-1)) -> 5.115840986 | D38: =C38/(Summary!$D$7/2) -> 0.8526401644 | E38: 0.5381537336 | F38: 0.7021318105 | G38: 0.8661098873 | H38: 1.030087964 | I38: 1.194066041 | J38: 1.358044118 | K38: 1.522022195 | L38: 1.686000272 | M38: 1.849978348 | N38: 2.013956425 | O38: 2.177934502 | Q38: 1.294719671 | R38: =Summary!$D$8*(Q38/Summary!$D$6) -> 2659107.971 | S38: =LIFT!$E$30-LIFT!$E$27+Interpolation2D(LIFT!$E$23,LOG10(R38),FIGURE!$AL$74:$AL$89,FIGURE!$AM$72:$AP$72,FIGURE!$AM$74:$AP$89) -> 1.61505625 | T38: =Interpolation2D(D38,$T$3,$D$5:$D$45,$E$3:$O$3,$E$5:$O$45) -> 1.548788313 | U38: -0.06626793717
B39: 35 | C39: =-('Wing Geometry'!$D$4/2)*COS(PI()/(COUNT($B:$B)-1)*(B39-1)) -> 5.346039145 | D39: =C39/(Summary!$D$7/2) -> 0.8910065242 | E39: 0.5100611855 | F39: 0.6668137886 | G39: 0.8235663917 | H39: 0.9803189947 | I39: 1.137071598 | J39: 1.293824201 | K39: 1.450576804 | L39: 1.607329407 | M39: 1.76408201 | N39: 1.920834613 | O39: 2.077587216 | Q39: 1.217986952 | R39: =Summary!$D$8*(Q39/Summary!$D$6) -> 2501513.558 | S39: =LIFT!$E$30-LIFT!$E$27+Interpolation2D(LIFT!$E$23,LOG10(R39),FIGURE!$AL$74:$AL$89,FIGURE!$AM$72:$AP$72,FIGURE!$AM$74:$AP$89) -> 1.61505625 | T39: =Interpolation2D(D39,$T$3,$D$5:$D$45,$E$3:$O$3,$E$5:$O$45) -> 1.476163509 | U39: -0.138892741
B40: 36 | C40: =-('Wing Geometry'!$D$4/2)*COS(PI()/(COUNT($B:$B)-1)*(B40-1)) -> 5.543277195 | D40: =C40/(Summary!$D$7/2) -> 0.9238795325 | E40: 0.4714911992 | F40: 0.6169031791 | G40: 0.7623151591 | H40: 0.907727139 | I40: 1.053139119 | J40: 1.198551099 | K40: 1.343963079 | L40: 1.489375059 | M40: 1.634787039 | N40: 1.780199019 | O40: 1.925610999 | Q40: 1.152240935 | R40: =Summary!$D$8*(Q40/Summary!$D$6) -> 2366483.744 | S40: =LIFT!$E$30-LIFT!$E$27+Interpolation2D(LIFT!$E$23,LOG10(R40),FIGURE!$AL$74:$AL$89,FIGURE!$AM$72:$AP$72,FIGURE!$AM$74:$AP$89) -> 1.61505625 | T40: =Interpolation2D(D40,$T$3,$D$5:$D$45,$E$3:$O$3,$E$5:$O$45) -> 1.367698656 | U40: -0.2473575945
B41: 37 | C41: =-('Wing Geometry'!$D$4/2)*COS(PI()/(COUNT($B:$B)-1)*(B41-1)) -> 5.706339098 | D41: =C41/(Summary!$D$7/2) -> 0.9510565163 | E41: 0.419722046 | F41: 0.5490277948 | G41: 0.6783335436 | H41: 0.8076392925 | I41: 0.9369450413 | J41: 1.06625079 | K41: 1.195556539 | L41: 1.324862288 | M41: 1.454168037 | N41: 1.583473785 | O41: 1.712779534 | Q41: 1.097886967 | R41: =Summary!$D$8*(Q41/Summary!$D$6) -> 2254851.032 | S41: =LIFT!$E$30-LIFT!$E$27+Interpolation2D(LIFT!$E$23,LOG10(R41),FIGURE!$AL$74:$AL$89,FIGURE!$AM$72:$AP$72,FIGURE!$AM$74:$AP$89) -> 1.61505625 | T41: =Interpolation2D(D41,$T$3,$D$5:$D$45,$E$3:$O$3,$E$5:$O$45) -> 1.216663098 | U41: -0.3983931522
B42: 38 | C42: =-('Wing Geometry'!$D$4/2)*COS(PI()/(COUNT($B:$B)-1)*(B42-1)) -> 5.834219522 | D42: =C42/(Summary!$D$7/2) -> 0.9723699204 | E42: 0.3528711437 | F42: 0.4611062556 | G42: 0.5693413674 | H42: 0.6775764793 | I42: 0.7858115911 | J42: 0.894046703 | K42: 1.002281815 | L42: 1.110516927 | M42: 1.218752039 | N42: 1.32698715 | O42: 1.435222262 | Q42: 1.055260159 | R42: =Summary!$D$8*(Q42/Summary!$D$6) -> 2167303.675 | S42: =LIFT!$E$30-LIFT!$E$27+Interpolation2D(LIFT!$E$23,LOG10(R42),FIGURE!$AL$74:$AL$89,FIGURE!$AM$72:$AP$72,FIGURE!$AM$74:$AP$89) -> 1.61505625 | T42: =Interpolation2D(D42,$T$3,$D$5:$D$45,$E$3:$O$3,$E$5:$O$45) -> 1.019949017 | U42: -0.5951072334
B43: 39 | C43: =-('Wing Geometry'!$D$4/2)*COS(PI()/(COUNT($B:$B)-1)*(B43-1)) -> 5.926130044 | D43: =C43/(Summary!$D$7/2) -> 0.9876883406 | E43: 0.2711928393 | F43: 0.3539041785 | G43: 0.4366155176 | H43: 0.5193268568 | I43: 0.6020381959 | J43: 0.6847495351 | K43: 0.7674608742 | L43: 0.8501722134 | M43: 0.9328835525 | N43: 1.015594892 | O43: 1.098306231 | Q43: 1.024623319 | R43: =Summary!$D$8*(Q43/Summary!$D$6) -> 2104381.431 | S43: =LIFT!$E$30-LIFT!$E$27+Interpolation2D(LIFT!$E$23,LOG10(R43),FIGURE!$AL$74:$AL$89,FIGURE!$AM$72:$AP$72,FIGURE!$AM$74:$AP$89) -> 1.61505625 | T43: =Interpolation2D(D43,$T$3,$D$5:$D$45,$E$3:$O$3,$E$5:$O$45) -> 0.7809618345 | U43: -0.8340944159
B44: 40 | C44: =-('Wing Geometry'!$D$4/2)*COS(PI()/(COUNT($B:$B)-1)*(B44-1)) -> 5.981504002 | D44: =C44/(Summary!$D$7/2) -> 0.9969173337 | E44: 0.1803746867 | F44: 0.2351388452 | G44: 0.2899030038 | H44: 0.3446671623 | I44: 0.3994313209 | J44: 0.4541954794 | K44: 0.508959638 | L44: 0.5637237965 | M44: 0.6184879551 | N44: 0.6732521136 | O44: 0.7280162722 | Q44: 1.006165333 | R44: =Summary!$D$8*(Q44/Summary!$D$6) -> 2066472.238 | S44: =LIFT!$E$30-LIFT!$E$27+Interpolation2D(LIFT!$E$23,LOG10(R44),FIGURE!$AL$74:$AL$89,FIGURE!$AM$72:$AP$72,FIGURE!$AM$74:$AP$89) -> 1.61505625 | T44: =Interpolation2D(D44,$T$3,$D$5:$D$45,$E$3:$O$3,$E$5:$O$45) -> 0.5178987839 | U44: -1.097157466
B45: 41 | C45: =-('Wing Geometry'!$D$4/2)*COS(PI()/(COUNT($B:$B)-1)*(B45-1)) -> 6 | D45: =C45/(Summary!$D$7/2) -> 1 | E45: 0 | F45: 0 | G45: 0 | H45: 0 | I45: 0 | J45: 0 | K45: 0 | L45: 0 | M45: 0 | N45: 0 | O45: 0 | Q45: 1 | R45: =Summary!$D$8*(Q45/Summary!$D$6) -> 2053809.817 | S45: =LIFT!$E$30-LIFT!$E$27+Interpolation2D(LIFT!$E$23,LOG10(R45),FIGURE!$AL$74:$AL$89,FIGURE!$AM$72:$AP$72,FIGURE!$AM$74:$AP$89) -> 1.61505625 | T45: =Interpolation2D(D45,$T$3,$D$5:$D$45,$E$3:$O$3,$E$5:$O$45) -> 0 | U45: -1.61505625

Sheet FIGURE
B2: FIGURE 2.2.1-8
B3: t/c | C3: Δy
B4: 0 | C4: 0
B5: 0.01 | C5: 0.263252932
B6: 0.02 | C6: 0.5265058641
B7: 0.03 | C7: 0.7897587961
B8: 0.04 | C8: 1.053011728
B9: 0.05 | C9: 1.31626466
B10: 0.06 | C10: 1.579517592
B11: 0.07 | C11: 1.842770524
B12: 0.08 | C12: 2.106023456
B13: 0.09 | C13: 2.369276388
B14: 0.1 | C14: 2.599328261
B15: 0.11 | C15: 2.832401752
B16: 0.12 | C16: 3.072536009
B17: 0.13 | C17: 3.319731031
B18: 0.14 | C18: 3.559876658
B19: 0.15 | C19: 3.792927409
B20: 0.16 | C20: 4.025989531
B21: 0.17 | C21: 4.273184553
B22: 0.18 | C22: 4.506246674
B23: 0.19 | C23: 4.746380931
B24: 0.2 | C24: 4.986515188
B27: TABLE 4.1.1-D
B28: Mean Line | C28: cl_i | D28: alpha_i | E28: cm_c/4
B29: 62 | C29: 0.9 | D29: 2.81 | E29: -0.113
B30: 63 | C30: 0.8 | D30: 1.6 | E30: -0.134
B31: 64 | C31: 0.76 | D31: 0.74 | E31: -0.157
B32: 65 | C32: 0.73 | D32: 0 | E32: -0.187
B33: 66 | C33: 0.76 | D33: -0.74 | E33: -0.222
B34: 67 | C34: 0.8 | D34: -1.6 | E34: -0.266
B37: FIGURE 4.1.1.2-8a
B38: log10(Re) | C38: 6 | D38: 7 | E38: 8
B39: tan((1/2)phi'_TE) | C39: cla/cla_theory | D39: cla/cla_theory | E39: cla/cla_theory
B40: 7.694029433e-05 | C40: 0.9017857143 | D40: 0.9517857143 | E40: 0.9672619048
B41: 0.02030524313 | C41: 0.8803571429 | D41: 0.9392857143 | E41: 0.9577380952
B42: 0.04006351072 | C42: 0.8589285714 | D42: 0.9244047619 | E42: 0.9470238095
B43: 0.06005726223 | C43: 0.8369047619 | D43: 0.9101190476 | E43: 0.9363095238
B44: 0.07981552982 | C44: 0.8154761905 | D44: 0.8946428571 | E44: 0.925
B45: 0.09980928133 | C45: 0.793452381 | D45: 0.8785714286 | E45: 0.9113095238
B46: 0.1202721355 | C46: 0.7726190476 | D46: 0.8601190476 | E46: 0.8964285714
B47: 0.1402663533 | C47: 0.75 | D47: 0.8422619048 | E47: 0.8803571429
B48: 0.1600241546 | C48: 0.7291666667 | D48: 0.8232142857 | E48: 0.8625
B49: 0.1797814896 | C49: 0.7089285714 | D49: 0.8023809524 | E49: 0.8428571429
B50: 0.200010725 | C50: 0.6863095238 | D50: 0.781547619 | E50: 0.8220238095
B53: FIGURE 4.1.3.1-4 | D53: λ | E53: 0 | G53: FIGURE 4.1.3.1-4 | I53: λ | J53: 0.5 | L53: FIGURE 4.1.3.1-4 | O53: λ | P53: 1
B54: AR | C54: 1.5 | D54: 3.5 | E54: 6 | G54: AR | H54: 1.5 | I54: 3.5 | J54: 6 | L54: AR | M54: 1.5 | N54: 3.5 | O54: 6 | P54: 10
B55: Λ_c/4 | C55: Δalpha0/theta | D55: Δalpha0/theta | E55: Δalpha0/theta | G55: Λ_c/4 | H55: Δalpha0/theta | I55: Δalpha0/theta | J55: Δalpha0/theta | L55: Λ_c/4 | M55: Δalpha0/theta | N55: Δalpha0/theta | O55: Δalpha0/theta | P55: Δalpha0/theta
B56: 0 | C56: -0.399999814 | D56: -0.381844917 | E56: -0.3668150433 | G56: 0 | H56: -0.4071058154 | I56: -0.4099132083 | J56: -0.412617426 | L56: 0 | M56: -0.4070110483 | N56: -0.4173563218 | O56: -0.4268964402 | P56: -0.4372412678
B57: 5 | C57: -0.3992685957 | D57: -0.3790303499 | E57: -0.3635542303 | G57: 5 | H57: -0.4060924785 | I57: -0.4079647959 | J57: -0.4105639429 | L57: 5 | M57: -0.4082852269 | N57: -0.4162163729 | O57: -0.4255266062 | P57: -0.4350670591
B58: 10 | C58: -0.3985368195 | D58: -0.3763640354 | E58: -0.3605904806 | G58: 10 | H58: -0.405286575 | I58: -0.405286575 | J58: -0.4085107305 | L58: 10 | M58: -0.4086396424 | N58: -0.415076424 | O58: -0.4242719377 | P58: -0.433122401
B59: 15 | C59: -0.3976566046 | D59: -0.373697907 | E59: -0.357180299 | G59: 15 | H59: -0.4048966218 | I59: -0.4032330919 | J59: -0.406248189 | L59: 15 | M59: -0.4092239428 | N59: -0.4141665831 | O59: -0.4231322118 | P59: -0.4308332497
B60: 20 | C60: -0.3967760177 | D60: -0.3711805891 | E60: -0.3540673666 | G60: 20 | H60: -0.4037784849 | I60: -0.4007631169 | J60: -0.4036742265 | L60: 20 | M60: -0.4090036456 | N60: -0.4127970835 | O60: -0.4219923743 | P60: -0.4286591525
B61: 25 | C61: -0.3955979955 | D61: -0.3680680288 | E61: -0.350657371 | G61: 25 | H61: -0.4027646063 | I61: -0.3983968587 | J61: -0.4015167558 | L61: 25 | M61: -0.4088981794 | N61: -0.4116570231 | O61: -0.4208524254 | P61: -0.4269442679
B62: 30 | C62: -0.3942713487 | D62: -0.3654019003 | E62: -0.3468009435 | G62: 30 | H62: -0.4018549861 | I62: -0.3960319545 | J62: -0.3994632726 | L62: 30 | M62: -0.4082184465 | N62: -0.4107470707 | O62: -0.4192529293 | P62: -0.4248850017
B63: 35 | C63: -0.3927957053 | D63: -0.3628849545 | E63: -0.3429441439 | G63: 35 | H63: -0.4010488119 | I63: -0.3935619796 | J63: -0.3972015436 | L63: 35 | M63: -0.4067335585 | N63: -0.4094922907 | O63: -0.4184576965 | P63: -0.4238599953
B64: 40 | C64: -0.3911710653 | D64: -0.3597720221 | E64: -0.3390873444 | G64: 40 | H64: -0.3997232415 | I64: -0.3910922754 | J64: -0.3950435312 | L64: 40 | M64: -0.4049041774 | N64: -0.4083523418 | O64: -0.4173179705 | P64: -0.4229501544
B65: 45 | C65: -0.3885045648 | D65: -0.355766784 | E65: -0.3353795415 | G65: 45 | H65: -0.3980848961 | I65: -0.3884145962 | J65: -0.3924701104 | L65: 45 | M65: -0.4027299687 | N65: -0.4070975618 | O65: -0.4164080181 | P65: -0.4227299687
B66: 50 | C66: -0.384350702 | D66: -0.3501240709 | E66: -0.3309274995 | G66: 50 | H66: -0.3958239794 | I66: -0.3846970415 | J66: -0.3894801977 | L66: 50 | M66: -0.3995210542 | N66: -0.4063027749 | O66: -0.4161877209 | P66: -0.4226245025
B67: 55 | C67: -0.3793034174 | D67: -0.3432912447 | E67: -0.3252853444 | G67: 55 | H67: -0.3925212917 | I67: -0.3803544784 | J67: -0.3852421637 | L67: 55 | M67: -0.3956224846 | N67: -0.4056225961 | O67: -0.4161971972 | P67: -0.4234383536
B68: 60 | C68: -0.3720241594 | D68: -0.3348216877 | E68: -0.3175600265 | G68: 60 | H68: -0.387140478 | I68: -0.3747656895 | J68: -0.3801730418 | L68: 60 | M68: -0.3903447161 | N68: -0.4050574713 | O68: -0.4168966632 | P68: -0.4248276977
B71: FIGURE 4.1.1.4-5 | H71: FIGURE 4.1.1.4-6 | K71: max camber | L71: 15 | N71: FIGURE 4.1.1.4-6 | Q71: max camber | R71: 30 | T71: FIGURE 4.1.1.4-6 | W71: max camber | X71: 40 | Z71: FIGURE 4.1.1.4-6 | AC71: max camber | AD71: 50 | AF71: FIGURE 4.1.1.4-7a | AL71: FIGURE 4.1.1.4-7b
B72: x/c_t/cmax | C72: 30 | D72: 35 | E72: 40 | F72: 45 | H72: camber | I72: 0 | J72: 2 | K72: 4 | L72: 6 | N72: camber | O72: 0 | P72: 2 | Q72: 4 | R72: 6 | T72: camber | U72: 0 | V72: 2 | W72: 4 | X72: 6 | Z72: camber | AA72: 0 | AB72: 2 | AC72: 4 | AD72: 6 | AF72: x/c_(t/c)max | AG72: 30 | AH72: 35 | AI72: 40 | AJ72: 45 | AL72: log10(Re) | AM72: =LOG10(3*10^6) -> 6.477121255 | AN72: =LOG10(6*10^6) -> 6.77815125 | AO72: =LOG10(9*10^6) -> 6.954242509 | AP72: =LOG10(25*10^6) -> 7.397940009
B73: Δy | C73: clmax_base | D73: clmax_base | E73: clmax_base | F73: clmax_base | H73: Δy | I73: Δ1_clmax | J73: Δ1_clmax | K73: Δ1_clmax | L73: Δ1_clmax | N73: Δy | O73: Δ1_clmax | P73: Δ1_clmax | Q73: Δ1_clmax | R73: Δ1_clmax | T73: Δy | U73: Δ1_clmax | V73: Δ1_clmax | W73: Δ1_clmax | X73: Δ1_clmax | Z73: Δy | AA73: Δ1_clmax | AB73: Δ1_clmax | AC73: Δ1_clmax | AD73: Δ1_clmax | AF73: Δy | AG73: Δ2_clmax | AH73: Δ2_clmax | AI73: Δ2_clmax | AJ73: Δ2_clmax | AL73: Δy | AM73: Δ3_clmax | AN73: Δ3_clmax | AO73: Δ3_clmax | AP73: Δ3_clmax
B74: 0 | C74: 0.7993571945 | D74: 0.7993571945 | E74: 0.7993571945 | F74: 0.7993571945 | H74: 0.3209099343 | I74: 0 | J74: 0.0002079189694 | N74: 1.5 | O74: 0 | P74: 0.07041420118 | Q74: 0.274556213 | R74: 0.6526627219 | T74: 1.5 | U74: 0 | V74: 0.05347613175 | W74: 0.2771462005 | X74: 0.5096919527 | Z74: 1.5 | AA74: 0 | AB74: 0.03258846108 | AC74: 0.1815039113 | AD74: 0.3512064941 | AF74: 0.25 | AG74: 0 | AH74: 0.158086769 | AI74: 0.158086769 | AJ74: 0.158086769 | AL74: 1 | AM74: -0.09217002237 | AN74: -0.008053691275 | AO74: 0 | AP74: 0.1261744966
B75: 1 | C75: 0.8005856043 | D75: 0.8005856043 | E75: 0.8005856043 | F75: 0.8005856043 | H75: 0.5 | I75: 0 | J75: 0.02882854265 | N75: 1.75 | O75: 0 | P75: 0.1556213018 | Q75: 0.3455621302 | R75: 0.624260355 | T75: 1.75 | U75: 0 | V75: 0.1278726942 | W75: 0.33556369 | X75: 0.5148581833 | Z75: 1.75 | AA75: 0 | AB75: 0.06399143817 | AC75: 0.2232922221 | AD75: 0.3964620712 | AF75: 0.5 | AG75: 0 | AH75: 0.1670646401 | AI75: 0.1670646401 | AJ75: 0.1670646401 | AL75: 1.25 | AM75: -0.1172259508 | AN75: -0.05100671141 | AO75: 0 | AP75: 0.1422818792
B76: 1.25 | C76: 0.856635409 | D76: 0.856635409 | E76: 0.856635409 | F76: 0.856635409 | H76: 0.75 | I76: 0 | J76: 0.07353112107 | N76: 2 | O76: 0 | P76: 0.2230769231 | Q76: 0.4023668639 | R76: 0.5585798817 | T76: 2 | U76: 0 | V76: 0.1951658673 | W76: 0.369126423 | X76: 0.4987142458 | Z76: 2 | AA76: 0 | AB76: 0.09539853152 | AC76: 0.263365423 | AD76: 0.4313281983 | AF76: 0.75 | AG76: 0 | AH76: 0.176 | AI76: 0.176 | AJ76: 0.176 | AL76: 1.5 | AM76: -0.1351230425 | AN76: -0.07606263982 | AO76: 0 | AP76: 0.1369127517
B77: 1.5 | C77: 0.9688981267 | D77: 0.9688981267 | E77: 0.9688981267 | F77: 0.9688981267 | H77: 1 | I77: 0 | J77: 0.1235789496 | N77: 2.25 | O77: 0 | P77: 0.2550295858 | Q77: 0.400591716 | R77: 0.4733727811 | T77: 2.25 | U77: 0 | V77: 0.2322817163 | W77: 0.3796209062 | X77: 0.4559461 | Z77: 2.25 | AA77: 0 | AB77: 0.1233342423 | AC77: 0.2965040914 | AD77: 0.4558007591 | AF77: 1 | AG77: 0 | AH77: 0.1867997417 | AI77: 0.1867997417 | AJ77: 0.1867997417 | AL77: 1.75 | AM77: -0.1422818792 | AN77: -0.08501118568 | AO77: 0 | AP77: 0.1100671141
B78: 1.75 | C78: 1.085038066 | D78: 1.085038066 | E78: 1.085038066 | F78: 1.085038066 | H78: 1.25 | I78: 0 | J78: 0.1682844158 | N78: 2.5 | O78: 0 | P78: 0.2479289941 | Q78: 0.3366863905 | R78: 0.3846153846 | T78: 2.5 | U78: 0 | V78: 0.2285665783 | W78: 0.3421753281 | X78: 0.398991073 | Z78: 2.5 | AA78: 0 | AB78: 0.1460875769 | AC78: 0.2949989109 | AD78: 0.4491132024 | AF78: 1.25 | AG78: 0 | AH78: 0.1939982534 | AI78: 0.1939982534 | AJ78: 0.1939982534 | AL78: 2 | AM78: -0.1315436242 | AN78: -0.07427293065 | AO78: 0 | AP78: 0.06890380313
B79: 2 | C79: 1.199239394 | D79: 1.199239394 | E79: 1.199239394 | F79: 1.199239394 | H79: 1.5 | I79: 0 | J79: 0.2290227447 | N79: 2.75 | O79: 0 | P79: 0.2017751479 | Q79: 0.2585798817 | R79: 0.2976331361 | T79: 2.75 | U79: 0 | V79: 0.1964549378 | W79: 0.2674604064 | X79: 0.3295845065 | Z79: 2.75 | AA79: 0 | AB79: 0.1515128127 | AC79: 0.2623336129 | AD79: 0.3731585293 | AF79: 1.5 | AG79: 0 | AH79: 0.201196765 | AI79: 0.201196765 | AJ79: 0.201196765 | AL79: 2.25 | AM79: -0.1082774049 | AN79: -0.04921700224 | AO79: 0 | AP79: 0.02774049217
B80: 2.25 | C80: 1.311508908 | D80: 1.311508908 | E80: 1.311508908 | F80: 1.290180793 | H80: 1.75 | I80: 0 | J80: 0.2915485993 | N80: 3 | O80: 0 | P80: 0.1538461538 | Q80: 0.1840236686 | R80: 0.2213017751 | T80: 3 | U80: 0 | V80: 0.1448111085 | W80: 0.1909618206 | X80: 0.2513164689 | Z80: 3 | AA80: 0 | AB80: 0.1396264148 | AC80: 0.2210104399 | AD80: 0.2937407062 | AF80: 1.75 | AG80: 0 | AH80: 0.1994970572 | AI80: 0.1994970572 | AJ80: 0.1994970572 | AL80: 2.5 | AM80: -0.09217002237 | AN80: -0.03131991051 | AO80: 0 | AP80: 0.01342281879
B81: 2.5 | C81: 1.425713634 | D81: 1.421836413 | E81: 1.392760651 | F81: 1.332653526 | H81: 2 | I81: 0 | J81: 0.322000065 | K81: 0.3986124297 | L81: 0.3986124297 | N81: 3.25 | O81: 0 | P81: 0.1112426036 | Q81: 0.1272189349 | R81: 0.1573964497 | T81: 3.25 | U81: 0 | V81: 0.09672608003 | W81: 0.1322288143 | X81: 0.1783795265 | Z81: 3.25 | AA81: 0 | AB81: 0.1156272243 | AC81: 0.1796872669 | AD81: 0.2437637745 | AF81: 2 | AG81: 0 | AH81: 0.1746670991 | AI81: 0.1746670991 | AJ81: 0.1746670991 | AL81: 2.75 | AM81: -0.09574944072 | AN81: -0.02237136465 | AO81: 0 | AP81: 0.04563758389
B82: 2.75 | C82: 1.528276503 | D82: 1.477876023 | E82: 1.425533536 | F82: 1.34410849 | H82: 2.25 | I82: 0 | J82: 0.2883085286 | K82: 0.3684872812 | L82: 0.3684872812 | N82: 3.5 | O82: 0 | P82: 0.0775147929 | Q82: 0.08461538462 | R82: 0.09881656805 | T82: 3.5 | U82: 0 | V82: 0.06815902799 | W82: 0.09833635217 | X82: 0.1285136763 | Z82: 3.5 | AA82: 0 | AB82: 0.09161156876 | AC82: 0.1418313601 | AD82: 0.2058955189 | AF82: 2.25 | AG82: 0 | AH82: 0.1444990627 | AI82: 0.1444990627 | AJ82: 0.1444990627 | AL82: 3 | AM82: -0.11901566 | AN82: -0.03131991051 | AO82: 0 | AP82: 0.1100671141
B83: 3 | C83: 1.568814024 | D83: 1.502897863 | E83: 1.442804331 | F83: 1.349751019 | H83: 2.5 | I83: 0 | J83: 0.2261118792 | K83: 0.3027271316 | L83: 0.3027271316 | N83: 3.75 | O83: 0 | P83: 0.0650887574 | Q83: 0.06331360947 | R83: 0.0650887574 | T83: 3.75 | U83: 0 | V83: 0.06267728075 | W83: 0.08042580541 | X83: 0.1035025827 | Z83: 3.75 | AA83: 0 | AB83: 0.05722292828 | AC83: 0.1282133871 | AD83: 0.1922857785 | AF83: 2.5 | AG83: 0 | AH83: 0.1072121662 | AI83: 0.1072121662 | AJ83: 0.1072121662 | AL83: 3.25 | AM83: -0.1583892617 | AN83: -0.05279642058 | AO83: 0 | AP83: 0.1512304251
B84: 3.25 | C84: 1.578330377 | D84: 1.518233446 | E84: 1.446504851 | F84: 1.349574318 | H84: 2.75 | I84: 0 | J84: 0.1692547043 | K84: 0.2280611195 | L84: 0.2280611195 | N84: 4 | O84: 0 | P84: 0.06153846154 | Q84: 0.06686390533 | R84: 0.07396449704 | T84: 4 | U84: 0 | V84: 0.0554118693 | W84: 0.08026378333 | X84: 0.1068851491 | Z84: 4 | AA84: 0 | AB84: 0.06091658906 | AC84: 0.1423047304 | AD84: 0.1977233631 | AF84: 2.75 | AG84: 0 | AH84: 0.07882348925 | AI84: 0.07882348925 | AJ84: 0.08060284868 | AL84: 3.5 | AM84: -0.2049217002 | AN84: -0.0706935123 | AO84: 0 | AP84: 0.1762863535
B85: 3.5 | C85: 1.578150278 | D85: 1.518056745 | E85: 1.446328151 | F85: 1.343581786 | H85: 3 | I85: 0 | J85: 0.1177485552 | K85: 0.1605163321 | L85: 0.1605163321 | N85: 4.25 | O85: 0 | P85: 0.06153846154 | Q85: 0.07928994083 | R85: 0.08461538462 | T85: 4.25 | U85: 0 | V85: 0.05880012065 | W85: 0.09252771825 | X85: 0.1173853173 | Z85: 4.25 | AA85: 0 | AB85: 0.07674362365 | AC85: 0.1563960738 | AD85: 0.2187410064 | AF85: 3 | AG85: 0 | AH85: 0.04331595222 | AI85: 0.04331595222 | AJ85: 0.07890456318 | AL85: 3.75 | AM85: -0.2228187919 | AN85: -0.08680089485 | AO85: 0 | AP85: 0.1906040268
B86: 3.75 | C86: 1.568283922 | D86: 1.506251779 | E86: 1.440335618 | F86: 1.341466474 | H86: 3.25 | I86: 0 | J86: 0.08228104436 | K86: 0.1196977956 | L86: 0.1196977956 | N86: 4.5 | O86: 0 | P86: 0.06153846154 | Q86: 0.06863905325 | R86: 0.08639053254 | T86: 4.5 | U86: 0 | V86: 0.05863525607 | W86: 0.0852651493 | X86: 0.1260932938 | Z86: 4.5 | AA86: 0 | AB86: 0.09602557572 | AC86: 0.1687558421 | AD86: 0.2397463009 | AF86: 3.25 | AG86: 0 | AH86: 0.0113685564 | AI86: 0.02738279128 | AJ86: 0.08254435597 | AL86: 4 | AM86: -0.2389261745 | AN86: -0.1064876957 | AO86: 0 | AP86: 0.1977628635
B87: 4 | C87: 1.542912079 | D87: 1.482808352 | E87: 1.424650032 | F87: 1.33159672 | H87: 3.5 | I87: 0 | J87: 0.07174937101 | K87: 0.1038179843 | L87: 0.1038179843 | N87: 4.75 | O87: 0 | P87: 0.0349112426 | Q87: 0.04911242604 | R87: 0.06686390533 | T87: 4.75 | U87: 0 | V87: 0.04427782524 | W87: 0.0726800127 | X87: 0.1152747664 | Z87: 4.75 | AA87: 0 | AB87: 0.09626020276 | AC87: 0.1534104104 | AD87: 0.227859903 | AF87: 3.5 | AG87: 0 | AH87: -0.01168204227 | AI87: 0.02212720926 | AJ87: 0.09863966478 | AL87: 4.25 | AM87: -0.2514541387 | AN87: -0.11901566 | AO87: 0
B88: 4.25 | C88: 1.503956369 | D88: 1.447740057 | E88: 1.387639729 | H88: 3.75 | I88: 0 | J88: 0.07191108576 | K88: 0.1039825868 | L88: 0.1039825868 | N88: 5 | O88: 0 | P88: 0.002958579882 | Q88: 0.01183431953 | R88: 0.02603550296 | T88: 5 | U88: 0 | V88: 0.01925251916 | W88: 0.04410727568 | X88: 0.08848285108 | Z88: 5 | AA88: 0 | AB88: 0.07572827856 | AC88: 0.1190135374 | AD88: 0.2003975625 | AF88: 3.75 | AG88: 0 | AH88: -0.02227854727 | AI88: 0.03466095451 | AJ88: 0.1147335512 | AL88: 4.5 | AM88: -0.255033557 | AN88: -0.1279642058 | AO88: 0
B89: 4.5 | C89: 1.46307564 | D89: 1.410729754 | E89: 1.348690815 | H89: 4 | I89: 0 | J89: 0.07563341287 | K89: 0.1041471893 | L89: 0.1041471893 | N89: 5.25 | O89: 0 | P89: -0.03431952663 | Q89: -0.02544378698 | R89: -0.01834319527 | T89: 5.25 | U89: 0 | V89: -0.00930884789 | W89: 0.006673067539 | X89: 0.035075255 | Z89: 5.25 | AA89: 0 | AB89: 0.04998928056 | AC89: 0.09327453936 | AD89: 0.1677363807 | AF89: 4 | AG89: 0 | AH89: -0.03109427049 | AI89: 0.03651996552 | AJ89: 0.1183719217 | AL89: 4.75 | AM89: -0.2568232662 | AN89: -0.1351230425 | AO89: 0
B90: 4.75 | C90: 1.435754992 | D90: 1.375658061 | H90: 4.25 | I90: 0 | J90: 0.06867101516 | K90: 0.1043089041 | L90: 0.1043089041 | AF90: 4.25 | AG90: 0 | AH90: -0.0363498525 | AI90: 0.02948360173 | AJ90: 0.1095561985
B91: 5 | C91: 1.414250176 | H91: 4.5 | I91: 0 | J91: 0.06348747974 | K91: 0.09734073082 | L91: 0.09734073082 | AF91: 4.5 | AG91: 0 | AH91: -0.04338763864 | AI91: 0.01532980022 | AJ91: 0.08650417744
B92: 5.25 | C92: 1.412134865 | H92: 4.75 | I92: 0 | J92: 0.05118560739 | K92: 0.08503308294 | L92: 0.08503308294
H93: 5 | I93: 0 | J93: 0.03175384704 | K93: 0.0584800979 | L93: 0.0584800979
H94: 5.25 | I94: 0 | J94: 0.001620035303 | K94: 0.02122217369 | L94: 0.02122217369
B97: FIGURE4.4.1-66 | H97: FIGURE4.4.1-66 | M97: FIGURE4.4.1-66 | Q97: FIGURE 4.4.1-67 | Y97: FIGURE 4.4.1-67 | AE97: FIGURE 4.4.1-67 | AK97: FIGURE4.4.1-68a | AP97: FIGURE 4.4.1-68b
B98: Λ_c/4 | C98: 0 | D98: 30 | E98: 45 | F98: 60 | H98: λ | I98: 0 | J98: 0.5 | K98: 1 | M98: λ | N98: 0 | O98: 1 | Q98: Aeff | R98: 1.5 | S98: 2 | T98: 3 | U98: 5 | V98: 7 | W98: 10 | Y98: λ_c/4 | Z98: 0 | AA98: 30 | AB98: 45 | AC98: 60 | AE98: λ_c/4 | AF98: 0 | AG98: 30 | AH98: 45 | AI98: 60 | AK98: Λ_c/4 | AL98: Δy | AM98: Δy | AP98: 2a/bv | AQ98: 0 | AR98: 0.2 | AS98: 0.6 | AT98: 1
B99: (α-α0)/(αCLmax-α0) | C99: - | D99: - | E99: - | F99: - | H99: - | I99: Aeff/A | J99: Aeff/A | K99: Aeff/A | M99: Aeff/A | N99: beff/b | O99: beff/b | Q99: l2/(b/2) | R99: - | S99: - | T99: - | U99: - | V99: - | W99: - | Y99: Aeff | Z99: - | AA99: - | AB99: - | AC99: - | AE99: Aeff | AF99: (∂ε/∂α)∞ | AG99: (∂ε/∂α)∞ | AH99: (∂ε/∂α)∞ | AI99: (∂ε/∂α)∞ | AK99: 0 | AL99: 1.262211158 | AM99: 1.70948922 | AP99: bH/bv | AQ99: (∂ε/∂α)/(∂ε/∂α)v | AR99: (∂ε/∂α)/(∂ε/∂α)v | AS99: (∂ε/∂α)/(∂ε/∂α)v | AT99: (∂ε/∂α)/(∂ε/∂α)v
B100: 0.2 | C100: 5 | D100: 5 | E100: 5 | F100: 5 | H100: 0.3162547154 | I100: 0.298257981 | J100: 0.4163362728 | K100: 0.5302356046 | M100: 0.4 | N100: 0.5557087528 | Q100: 0.2 | R100: 3.352705931 | S100: 3.21992766 | T100: 2.788343684 | U100: 2.257285198 | V100: 1.925339521 | W100: 1.526950113 | Y100: 1 | Z100: -0.2180381973 | AA100: -0.02 | AB100: 0.23 | AC100: 0.6 | AE100: 1 | AF100: =1-Z100/2.5 -> 1.087215279 | AG100: =1-AA100/2.5 -> 1.008 | AH100: =1-AB100/2.5 -> 0.908 | AI100: =1-AC100/2.5 -> 0.76 | AK100: 5 | AL100: 1.255164259 | AM100: 1.708006224 | AP100: 0.2 | AQ100: 0.9938003217 | AR100: 0.956528837 | AS100: 0.7329100718 | AT100: 0.506951696
B101: 0.4059959128 | C101: 5 | D101: 5 | E101: 5 | F101: 5 | H101: 5 | I101: 1 | J101: 1 | K101: 1 | M101: 0.5 | N101: 0.6574236986 | Q101: 0.4 | R101: 2.45 | S101: 2.288841875 | T101: 1.923701631 | U101: 1.4423804 | V101: 1.210018426 | W101: 0.8946154371 | Y101: 2 | Z101: 0.4687009685 | AA101: 0.5998485094 | AB101: 0.8785911378 | AC101: 1.18 | AE101: 2 | AF101: 0.8125196126 | AG101: 0.7600605962 | AH101: 0.6485635449 | AI101: 0.528 | AK101: 10 | AL101: 1.253681263 | AM101: 1.706667259 | AP101: 0.4 | AQ101: 1.058132852 | AR101: 0.9579860222 | AS101: 0.7157112291 | AT101: 0.4944219317
B102: 0.5559929366 | C102: 5 | D102: 5 | E102: 5 | F102: =InterpolationLinear(B102,$B$101,$F$101,$B$104,$F$104) -> 4.048039156 | M102: 0.6 | N102: 0.7471444399 | O102: 0.5911515989 | Q102: 0.6 | R102: 1.805828158 | S102: 1.639909916 | T102: 1.374407971 | U102: 0.9925612503 | V102: 0.7934484406 | W102: 0.6108783184 | Y102: 3 | Z102: 0.9261483525 | AA102: 1.024454905 | AB102: 1.221176216 | AC102: 1.499864741 | AE102: 3 | AF102: 0.629540659 | AG102: 0.5902180382 | AH102: 0.5115295136 | AI102: 0.4000541038 | AK102: 15 | AL102: 1.258002223 | AM102: 1.705040231 | AP102: 0.6 | AQ102: 1.169095309 | AR102: 0.9780789498 | AS102: 0.684566008 | AT102: 0.4725742962
B103: 0.7299894843 | C103: 5 | D103: 5 | E103: =InterpolationLinear(B103,$B$102,$E$102,$B$104,$E$104) -> 4.098037862 | F103: =InterpolationLinear(B103,$B$101,$F$101,$B$104,$F$104) -> 2.943764578 | M103: 0.7 | N103: 0.822859632 | O103: 0.6948608441 | Q103: 0.8 | R103: 1.389258172 | S103: 1.256479902 | T103: 0.9909233604 | U103: 0.6921176551 | V103: 0.5759912646 | W103: 0.3934757388 | Y103: 4 | Z103: 1.186766218 | AA103: 1.301520316 | AB103: 1.4490613 | AC103: 1.6786236 | AE103: 4 | AF103: 0.525293513 | AG103: 0.4793918736 | AH103: 0.4203754802 | AI103: 0.32855056 | AK103: 20 | AL103: 1.296234719 | AM103: 1.709409202 | AP103: 0.8 | AQ103: 1.354590592 | AR103: 1.023796023 | AS103: 0.6394338374 | AT103: 0.4391097501
B104: 1 | C104: 5 | D104: 4 | E104: 2.69835916 | F104: 1.230134323 | M104: 0.8 | N104: 0.886569256 | O104: 0.79657579 | Q104: 1 | R104: 1.122063741 | S104: 0.9892308742 | T104: 0.7568689006 | U104: 0.5411042107 | V104: 0.4249778202 | W104: 0.29 | Y104: 5 | Z104: 1.365470973 | AA104: 1.496618514 | AB104: 1.611318509 | AC104: 1.824433263 | AE104: 5 | AF104: 0.4538116107 | AG104: 0.4013525943 | AH104: 0.3554725964 | AI104: 0.2702266948 | AK104: 25 | AL104: 1.357010891 | AM104: 1.764573461 | AP104: 0.8273102689 | AQ104: =InterpolationLinear($AP104,$AP$103,AQ$103,$AP$105,AQ$105) -> 1.332839843 | AR104: 1.035321648 | AS104: =InterpolationLinear($AP104,$AP$103,AS$103,$AP$105,AS$105) -> 0.6316819041 | AT104: =InterpolationLinear($AP104,$AP$103,AT$103,$AP$105,AT$105) -> 0.4335830755
M105: 0.9 | N105: 0.9422903192 | O105: 0.8902851299 | Q105: 1.2 | R105: 0.921203849 | S105: 0.8050228622 | T105: 0.5892035761 | U105: 0.4232307377 | V105: 0.3070497509 | W105: 0.2074660479 | Y105: 6 | Z105: 1.494941297 | AA105: 1.609695396 | AB105: 1.724503598 | AC105: 1.921170806 | AE105: 6 | AF105: 0.402023481 | AG105: 0.3561218417 | AH105: 0.3101985608 | AI105: 0.2315316778 | AK105: 30 | AL105: 1.463066459 | AM105: 1.865017115 | AP105: 1 | AQ105: 1.195304357 | AR105: 0.9414025106 | AS105: 0.5826644707 | AT105: 0.3986365151
M106: 1 | N106: 0.9880001136 | O106: 0.9880001136 | Q106: 1.4 | R106: 0.7867330922 | S106: 0.6539548215 | T106: 0.4713846994 | U106: 0.3385518324 | V106: 0.24 | W106: 0.145 | Y106: 7 | Z106: 1.608072283 | AA106: 1.706432938 | AB106: 1.821187037 | AC106: 1.985175567 | AE106: 7 | AF106: 0.3567710869 | AG106: 0.3174268246 | AH106: 0.2715251853 | AI106: 0.2059297733 | AK106: 35 | AL106: 1.597565681 | AM106: 2.010788175 | AP106: 1.2 | AQ106: 0.9940978444 | AR106: 0.784455886 | AS106: 0.5119182972 | AT106: 0.3465159411
Q107: 1.6 | R107: 0.6357196479 | S107: 0.5360813485 | T107: 0.386705794 | U107: 0.2705248072 | V107: 0.19 | W107: 0.121203849 | Y107: 8 | Z107: 1.688362279 | AA107: 1.770383596 | AB107: 1.901531137 | AC107: 2.04907212 | AE107: 8 | AF107: 0.3246550885 | AG107: 0.2918465617 | AH107: 0.2393875453 | AI107: 0.1803711519 | AK107: 40 | AL107: 1.788568126 | AM107: 2.213062458 | AP107: 1.4 | AQ107: 0.7416531832 | AR107: 0.5762609699 | AS107: 0.4388122274 | AT107: 0.2897262887
Q108: 1.8 | R108: 0.5676380263 | S108: 0.4680543233 | T108: 0.3352760527 | U108: 0.2356923497 | V108: 0.1693032144 | W108: 0.102914079 | Y108: 10 | Z108: 1.767137369 | AA108: 1.865498025 | AB108: 1.980252124 | AC108: 2.095006222 | AE108: 10 | AF108: 0.2931450522 | AG108: 0.2538007899 | AH108: 0.2078991506 | AI108: 0.1619975112 | AK108: 45 | AL108: 2.041973772 | AM108: 2.511747499 | AP108: 1.5 | AQ108: 0.6014591172 | AR108: 0.4570118285 | AS108: 0.3964558087 | AT108: 0.2660157552
Q109: 2 | R109: 0.482959121 | S109: 0.4000272982 | T109: 0.283791715 | U109: 0.2174025797 | V109: 0.1510134443 | W109: 0.08456971269 | AK109: 50 | AL109: 2.448005335 | AM109: 3.00277395
Q110: 2.2 | R110: 0.4315293796 | S110: 0.3485429605 | T110: 0.2489592575 | U110: 0.1825701222 | V110: 0.1161809868 | W110: 0.08298641916 | AK110: 55 | AL110: 3.001242943
B113: FIGURE4.1.5.1-26 | H113: FIGURE4.1.5.1-27 | N113: FIGURE4.1.5.1-28b
B114: M | C114: 0 | D114: 0.3 | E114: 0.7 | F114: 1 | H114: M | I114: 0 | J114: 1 | K114: 2 | L114: 3 | N114: M | O114: 0.125 | P114: 0.6 | Q114: 0.8 | R114: 0.9
B115: Re | C115: Cf | E115: Cf | F115: Cf | H115: l/k | I115: Re | J115: Re | K115: Re | L115: Re | N115: cos(Λ(t/c)max) | O115: R_L.S. | P115: R_L.S. | Q115: R_L.S. | R115: R_L.S.
B116: 5.369501845 | F116: 0.0055 | H116: 383.1652731 | L116: 101410.6304 | N116: 0.5 | O116: 0.8101910828 | P116: 0.8828025478 | Q116: 1 | R116: 1.092993631
B117: 5.437744579 | E117: 0.0055 | F117: 0.005337439855 | H117: 791.9884203 | K117: 99802.26036 | L117: 214985.6255 | N117: 0.55 | O117: 0.847133758 | P117: 0.9210191083 | Q117: 1.038216561 | R117: 1.131210191
B118: 5.484791728 | D118: 0.0055 | E118: 0.005393515678 | F118: 0.005212511383 | H118: 1462.300089 | J118: 100575.1528 | K118: 198459.483 | L118: 409454.3958 | N118: 0.6 | O118: 0.8866242038 | P118: 0.9605095541 | Q118: 1.075159236 | R118: 1.166878981
B119: 5.52208069 | C119: 0.0055 | D119: 0.005417476669 | E119: 0.005311019149 | F119: 0.005119998708 | H119: 1893.218399 | I119: 95816.64716 | J119: 124653.5475 | K119: 245884.6999 | L119: 541405.326 | N119: 0.65 | O119: 0.9248407643 | P119: 1.001273885 | Q119: 1.110828025 | R119: 1.202547771
B120: 5.698970004 | C120: 0.005071011076 | D120: 0.005014725353 | E120: 0.004878031453 | F120: 0.004709174282 | H120: 2568610.808 | I120: 196024446.2 | J120: 255019804.4 | K120: 481798461.1 | L120: 993675997.7 | N120: 0.7 | O120: 0.9617834395 | P120: 1.040764331 | Q120: 1.149044586 | R120: 1.239490446
B121: 6 | C121: 0.004474747312 | D121: 0.004418477734 | E121: 0.004289824652 | F121: 0.004145089934 | H121: 4907881.436 | I121: 389938399.6 | J121: 485702147.2 | K121: 979307001.2 | N121: 0.75 | O121: 0.9987261146 | P121: 1.077707006 | Q121: 1.18089172 | R121: 1.27133758
B122: 6.698970004 | C122: 0.003394452159 | D122: 0.003338166435 | E122: 0.003257774405 | F122: 0.003145186812 | H122: 9508756.114 | I122: 758317745.6 | J122: 1008409352 | N122: 0.8 | O122: 1.025477707 | P122: 1.107006369 | Q122: 1.212738854 | R122: 1.301910828
B123: 7 | C123: 0.003023363581 | D123: 0.002975134821 | E123: 0.002894710498 | F123: 0.002790196015 | H123: 10142478.53 | I123: 808723331.2 | N123: 0.85 | O123: 1.047133758 | P123: 1.12866242 | Q123: 1.233121019 | R123: 1.32866242
B124: 7.698970004 | C124: 0.00235318242 | D124: 0.002312978332 | E124: 0.002248651791 | F124: 0.002184309103 | N124: 0.9 | O124: 1.058598726 | P124: 1.141401274 | Q124: 1.245859873 | R124: 1.343949045
B125: 8 | C125: 0.002134853231 | D125: 0.002102706107 | E125: 0.002046404237 | F125: 0.001982077696 | N125: 0.95 | O125: 1.063694268 | P125: 1.14522293 | Q125: 1.250955414 | R125: 1.352866242
B126: 8.698970004 | C126: 0.00173805987 | D126: 0.0017058966 | E126: 0.001657635548 | F126: 0.001593309006 | N126: 1 | O126: 1.066242038 | P126: 1.147770701 | Q126: 1.256050955 | R126: 1.356687898
B127: 9 | C127: 0.00159209804 | D127: 0.001559950915 | E127: 0.001519730681 | F127: 0.001463461104
B130: FIGURE4.3.1.2-10
B131: d/b | C131: KB(W) | D131: KW(B)
B132: 0 | C132: 0 | D132: 1
B133: 0.1 | C133: 0.132238517 | D133: 1.07976263
B134: 0.2 | C134: 0.2824635161 | D134: 1.170017749
B135: 0.3 | C135: 0.4476765033 | D135: 1.260263903
B136: 0.4 | C136: 0.6218849726 | D136: 1.353521998
B137: 0.5 | C137: 0.802094912 | D137: 1.45576661
B138: 0.6 | C138: 1.003298792 | D138: 1.561014199
B139: 0.7 | C139: 1.222489153 | D139: 1.6692558
B140: 0.8 | C140: 1.450666033 | D140: 1.777501882
B141: 0.9 | C141: 1.702844311 | D141: 1.888746459
B142: 1 | C142: 2 | D142: 2
